{"text_format":"1","workbook":"xlsx","n_sheets":23,"sheets":["Cover Page","Contents","Facility Info","Operational Data","Operational Summary","Perf. Form 1","Energy Form 1","Permit Compliance","Improvements","Public Liasion","CO2 N2O","Residue Quality ","Water","Air (periodic)","Air (CEMS)","HCl","SO2","NOx","TOC","Particulates","CO 0.5 hourly","CO 95% 10 min","NH3"],"not_rendered":{"charts":8,"images":3,"macros":1,"external_links":0,"defined_names":23,"comments":0,"pivot_tables":0},"unopened":[],"bounds":{"document_bytes":16777216,"sheet_cells":100000,"rows_first":2000,"rows_last":500,"rows_between":2000,"halvings":0,"cell_chars":16384,"cell_head_chars":4096},"cells_cut":0,"cells_raw":0,"read":"whole","date_system":"1900"}

{"sheet":"Cover Page","index":0,"n_rows":53,"n_cols":14,"rows_kept":53,"cut":false,"hidden":false,"merged":[[13,13,18,15],[34,1,34,8],[0,3,5,6],[7,1,23,8],[28,1,28,8],[30,1,30,8],[32,1,32,8],[48,2,48,3],[48,6,48,8],[52,2,52,3],[36,1,36,8],[40,2,40,8],[42,2,42,4],[44,2,44,4],[46,2,46,3],[46,6,46,8]]}
[null,null,null,"Add company logo"]
[null,null,null,null,null,null,null,null,null,null,null,null,null,"Version 23.4a (for incinerators) - 15/11/2023"]
[]
[null,null,null,null,null,null,null,null,null,null,null,null,null,"Note that there is another version of this template available for co-incinerators"]
[]
[]
[]
[null,"Add photo"]
[]
[]
[]
[]
[null,null,null,null,null,null,null,null,null,null,null,null,null,"Notes:"]
[null,null,null,null,null,null,null,null,null,null,null,null,null,"This template may require adjustments by individual operators to meet specific reporting requirements as defined in the site Permit(s)"]
[]
[]
[]
[]
[]
[]
[]
[]
[]
[]
[]
[]
[]
[]
[null,"Annual Performance Report 2023"]
[]
[null,"Permit EPR/CP3031SX"]
[]
[null,"Slough Heat and Power Station"]
[]
[]
[]
[null,"Slough Heat and Power Limited"]
[]
[null,"Year:",2023]
[]
[null,"Address:","342 Edinburgh Avenue, Slough Trading Estate, SL1 4TU"]
[]
[null,"Tel: ","O1753213201"]
[]
[null,"Email: "]
[]
[null,"Prepared by:","Andrew Kershaw",null,null,"Position:","Chemist"]
[]
[null,"Approved by:",null,null,null,"Position:"]
[]
[null,"Version:",1]
[]
[null,"Issue Date:","2024-01-21"]

{"sheet":"Contents","index":1,"n_rows":45,"n_cols":11,"rows_kept":45,"cut":false,"hidden":false,"merged":[[4,10,7,14],[8,1,8,6],[3,1,3,6],[4,1,4,6],[5,1,5,6],[6,1,6,6],[7,1,7,6],[21,1,21,6],[9,1,9,6],[10,1,10,6],[11,1,11,6],[13,1,13,6],[14,1,14,6],[15,1,15,6],[16,1,16,6],[17,1,17,6],[18,1,18,6],[19,1,19,6],[20,1,20,6],[12,1,12,6],[36,1,36,6],[22,1,22,6],[23,1,23,6],[24,1,24,6],[27,1,27,6],[28,1,28,6],[29,1,29,6],[30,1,30,6],[31,1,31,6],[32,1,32,6],[35,1,35,6],[44,0,47,9],[37,1,37,6],[38,1,38,6],[39,1,39,6],[40,1,40,6],[41,1,41,6],[42,1,42,6]]}
[{"$f":"+'Cover Page'!$B$29","v":"Annual Performance Report 2023"},null,null,null,{"$f":"+'Cover Page'!$B$33","v":"Slough Heat and Power Station"}]
[]
["Contents",null,null,null,null,null,null,null,null,null,"Notes:"]
["Section","Subject",null,null,null,null,null,"Page ",null,null,"Section references and Page nos. to be inserted"]
[null,"Facility Information",null,null,null,null,null,null,null,null,"Sections and Subjects may require adjustment by individual operators to meet specific reporting requirements as defined in the sites Permit(s)"]
[null,"Operational Data"]
[null,"Operational Summary"]
[null,"Performance Form 1"]
[null,"Energy Form 1"]
[null,"Permit Compliance"]
[null,"Improvements"]
[null,"Public Liasion"]
[null,"Carbon dioxide and nitrous oxide emissions"]
[null,"Residue Quality "]
[null,"Emissions to Water"]
[null,"Emissions to Air (periodically monitored)"]
[null,"Emissions to Air (continuously monitored)"]
[null,"Hydrogen Chloride emissions"]
[null,"Sulphur Dioxdie emsissions"]
[null,"Oxides of Notrigen emissions"]
[null,"Total Organic Carbon emissions"]
[null,"Particulate Matter emissions"]
[null,"Carbon Monoxide emissions"]
[null,"Ammonia emissions"]
[]
[]
["Version Control"]
["Section","Information",null,null,null,null,null,"Date"]
[1,"Published",null,null,null,null,null,"2024-01-26"]
[null,"Revised Version 1",null,null,null,null,null,"2024-02-28"]
[]
[]
[]
[]
["Distribution"]
["Copy","Name, Role",null,null,null,null,null,"No."]
["P/E","Andy Kershaw, Chemist",null,null,null,null,null,2]
["E","SSE Distributed Energy",null,null,null,null,null,1]
["E ","Matt Rice, EA",null,null,null,null,null,1]
["E ","James Thatcher, Process Support Manager",null,null,null,null,null,1]
["E","Ishbel Cowie, Environmental Graduate",null,null,null,null,null,1]
[]
[]
[]
["This report is required under the Industrial Emissions Directive’s Article 55(2) requirements on reporting and public information on waste incineration plants and co-incineration plants, which require the operator to produce an annual report on the functioning and monitoring of the plant and make it available to the public. "]

{"sheet":"Facility Info","index":2,"n_rows":22,"n_cols":11,"rows_kept":22,"cut":false,"hidden":false,"merged":[[4,0,17,8],[21,0,53,8],[4,10,13,13],[21,10,30,13]]}
[{"$f":"+'Cover Page'!$B$29","v":"Annual Performance Report 2023"},null,null,null,{"$f":"+'Cover Page'!$B$33","v":"Slough Heat and Power Station"}]
[]
["Plant Description and Design",null,null,null,null,null,null,null,null,null,"Notes:"]
[]
["The installation is a Combined Heat and Power (CHP) plant comprising a waste incineration plant and package boiler and is situated within the Slough Trading Estate approximately 2 miles from the centre of Slough.  \nThe incinerator (Boiler 17) has a thermal input capacity of approximately 69 MW(th). Waste fuel, mainly waste wood, waste paper and plastic (RDF) is burnt on a conventional solid-fuel grate supported by natural gas. Air Emissions are released to atmosphere via a 104m stack. Electrical energy is generated via 2 steam turbines (TA17,TA16) with a combined generation capacity of 21 MW(e) and thermal energy is distributed via the heat network (hot water and steam) to a variety of commercial and industrial customers.  The package boiler plant has a themal input capacity of 22MW(th) and is used to support the incinerator plant to provide steam for the heat network. SHP operates a private water network sourced from local boreholes which is used to provide the majority of process water, an additional mains water source is supplied from a public utility that is exercised in the event of a disruption to the private mains.  ",null,null,null,null,null,null,null,null,null,"Include summary of plant design, design capacity, no. of combustion lines, electrical and heat capacity and any other general information that descibes the facility, its location and purpose "]
[]
[]
[]
[]
[]
[]
[]
[]
[]
[]
[]
[]
[]
[]
["Summary of Operational Processes and Procedures"]
[]
["The installation comprises of solid fuel storage facilities, feedwater treatment, combustion activities (vibrating grate solid fuel boiler, flue gas (PAC and lime) abatement system as well as ash distribution mechanisms), 2 energy generation turbines, and cooling water systems with natural draught cooling towers. Operational running of the plant is controlled by a continuously manned control room which includes continuous emission montoring systems (CEMs) and is managed by operations, maintenance and process support departments under SSE management procedures and systems.   ",null,null,null,null,null,null,null,null,null,"Include summary of key processes and procedures such as (but not limited to); waste reception, control rooms, grate, bed and bolier, energy & heat  generation, cooling systems, residue management, emission controls, health and safety systems, maintenance"]

{"sheet":"Operational Data","index":3,"n_rows":61,"n_cols":10,"rows_kept":61,"cut":false,"hidden":false,"merged":[[5,9,7,9],[33,1,38,1],[3,1,3,2],[7,1,19,1],[23,1,26,1],[28,1,29,1],[9,9,20,9],[21,9,25,9]]}
[{"$f":"+'Cover Page'!$B$29","v":"Annual Performance Report 2023"},null,null,null,{"$f":"+'Cover Page'!$B$33","v":"Slough Heat and Power Station"}]
[]
["Operational Data"]
["Plant Size",120000,null,"tonnes pa",91,"MWth",21,"MWe",null,"Notes:"]
["No. of combustion lines",1,null,"No. of Turbines:",null,2,null,null,null,"* - RDF to include SRF "]
[null,null,null,null,null,null,null,null,null,"** - Combusted tonnage = tonnes delivered in period + (tonnes in bunker at start of period – tonnes in bunker at end of period), or equivalent calculation depending on plant type"]
["Waste types received","Unit","Q1","Q2","Q3","Q4","Year Total","%"]
["Household / Local Authority","tonnes",null,null,null,null,{"$f":"SUM(C8:F8)","v":0},{"$f":"IF(G8>0,G8/$G$18,\"-\")","v":"-"}]
["Commercial & Industrial ",null,null,null,null,null,{"$f":"SUM(C9:F9)","v":0},"-",null,"*** - CHP plants only"]
["Hazardous ",null,null,null,null,null,0,"-",null,"**** Availability Definition: 'the availability of a line is to be calculated by the number of hours the line reported Continuously Monitored emission levels to the Regulator through the calendar year divided by the total number of hours in that year. \n\nThe overall plant availability is calculated as the Mean of all lines in the plant. For clarity this includes periods of abnormal operation.'  \n\nRationale: The primary function of an Energy from Waste facility is the disposal of waste. It follows therefore that the availability of a plant is determined by the period of time a facility spends undertaking this activity."]
["Clinical",null,null,null,null,null,0,"-"]
["Waste wood (biomass) ",null,34022.49,21992.95,33451.716,35444.25,124911.406,1]
["Refuse Derived Fuel * - H'hold/LA",null,null,null,null,null,{"$f":"SUM(C13:F13)","v":0},"-"]
["Refuse Derived Fuel *  - C&I",null,null,null,null,null,0,"-"]
["Other [Please specify]",null,null,null,null,null,0,"-"]
["Other [Please specify]",null,null,null,null,null,0,"-"]
["Other [Please specify]",null,null,null,null,null,0,"-"]
["Total waste received",null,{"$f":"SUM(C8:C17)","v":34022.49},{"$f":"SUM(D8:D17)","v":21992.95},{"$f":"SUM(E8:E17)","v":33451.716},{"$f":"SUM(F8:F17)","v":35444.25},124911.406]
["Rejected Waste ",null,null,null,null,null,{"$f":"SUM(C19:F19)","v":0},{"$f":"IF(G19>0,G19/$G$18,\"-\")","v":"-"}]
["Unprocessed waste transferred out",null,null,null,null,null,{"$f":"SUM(C20:F20)","v":0},{"$f":"IF(G20>0,G20/$G$18,\"-\")","v":"-"}]
["Total waste combusted **",null,33317,22189,33798,35369,{"$f":"SUM(C21:F21)","v":124673}]
[null,null,null,null,null,null,null,null,null,"Password for protected cells\nA password has been set to prevent accidental  editing of cells with formulae. \nIf you still need to make an edit for some reason then the password = 1234"]
["Energy Usage / Export","Unit","Q1","Q2","Q3","Q4","Year Total","KWh/te"]
["Power Generated","MWh",20674,15265,24889,21997,{"$f":"SUM(C24:F24)","v":82825},{"$f":"IF(G24>0,G24*1000/$G$21,\"-\")","v":664.33790796724236}]
["Power Exported",null,17862,13194,21952,19201,{"$f":"SUM(C25:F25)","v":72209},{"$f":"IF(G25>0,G25*1000/$G$21,\"-\")","v":579.18715359380144}]
["Power Used on site",null,null,null,null,null,{"$f":"SUM(C26:F26)","v":0},{"$f":"IF(G26>0,G26*1000/$G$21,\"-\")","v":"-"}]
["Power Imported",null,2813,2070,2938,2796,{"$f":"SUM(C27:F27)","v":10617},{"$f":"IF(G27>0,G27*1000/$G$21,\"-\")","v":85.158775356332171}]
["Parasitic Load","%",{"$f":"IF(C24>0,1-C25/(C24+C27),\"-\")","v":0.23949418827436453},{"$f":"IF(D24>0,1-D25/(D24+D27),\"-\")","v":0.23888087683876547},{"$f":"IF(E24>0,1-E25/(E24+E27),\"-\")","v":0.21112588493190065},{"$f":"IF(F24>0,1-F25/(F24+F27),\"-\")","v":0.22554753357802604},{"$f":"IF(G24>0,1-G25/(G24+G27),\"-\")","v":0.22723186575629806}]
["Thermal Energy Produced ***","MWh",null,null,null,null,{"$f":"SUM(C29:F29)","v":0},{"$f":"IF(G29>0,G29*1000/$G$21,\"-\")","v":"-"}]
["Thermal Energy Exported ***",null,13276,10404,11324,11118,{"$f":"SUM(C30:F30)","v":46122},{"$f":"IF(G30>0,G30*1000/$G$21,\"-\")","v":369.94377290993236}]
["R1 value (if applicable)","R1"]
[]
["Waste Disposal & Recovery","Unit","Q1","Q2","Q3","Q4","Year Total","% inputs"]
["APC Residues - produced","tonnes",607.12400000000002,455.34,685.85,566.05999999999995,{"$f":"SUM(C34:F34)","v":2314.3739999999998},{"$f":"IF(G34>0,G34/$G$21,\"-\")","v":1.8563554257938767E-2}]
["IBA - produced",null,1391.6110000000001,1028.47,1588.32,1669.39,5677.7910000000002,4.5541464471056288E-2]
["Metals recycling",null,30.52,102.54,50.34,51.26,234.66,1.882203845259198E-3]
["Fly Ash",null,446.661,312.25,381.98,467.8,1608.691,1.2903282988297387E-2]
["Other",null,0,0,0,0,0,"-"]
["Other",null,0,0,0,0,0,"-"]
[]
["Raw Material Usage","Unit","Q1","Q2","Q3","Q4","Year Total","kg or Ltr /te"]
["Mains Water","m3",187,487,491,301,{"$f":"SUM(C42:F42)","v":1466},{"$f":"IF(G42>0,(G42/$G$21)*1000,\"-\")","v":11.75876091856296}]
["Other Water","m3",53886,81314,152041,106700,393941,{"$f":"IF(G43>0,(G43/$G$21)*1000,\"-\")","v":3159.7940211593527}]
["Ammonia","kgs",0,0,0,0,0,{"$f":"IF(G44>0,G44/$G$21,\"-\")","v":"-"}]
["Urea","kgs",2176,7616,8704,8704,{"$f":"SUM(C45:F45)","v":27200},{"$f":"IF(G45>0,G45/$G$21,\"-\")","v":0.21817073464182302}]
["Activated Carbon","tonnes",2,1,2,1,6,{"$f":"IF(G46>0,G46/$G$21,\"-\")","v":4.8125897347460956E-5}]
["Lime / hydrated lime","tonnes",466,336,587,494,{"$f":"SUM(C47:F47)","v":1883},{"$f":"IF(G47>0,G47/$G$21,\"-\")","v":1.5103510784211497E-2}]
["Fuel oil","ltrs",10542,6561,10781,11305,39189,{"$f":"IF(G48>0,G48/$G$21,\"-\")","v":0.31433429852494127}]
["Gas","Kcf",8286.2000000000007,16702.599999999999,9265.4,8163.6,42417.799999999996]
["Other",null,null,null,null,null,0]
[]
["Summary ","Line/Unit","Q1","Q2","Q3","Q4","Year Total",null,"Hrs in year "]
["Availability of waste combustion by line, hrs ****",{"$f":"+B5","v":1},1933.5,1360,2067,2024.5,{"$f":"SUM(C53:F53)","v":7385},{"$f":"+G53/$I$53","v":0.84303652968036524},8760]
["Overall Availability, mean avg. of all lines, hrs",null,null,null,null,null,{"$f":"AVERAGE(G53:G53)","v":7385},{"$f":"+G54/$I$53","v":0.84303652968036524}]
["Hours of turbine operations, hrs",1,1933.5,1360,2067,2024.5,7385,{"$f":"+G55/$I$53","v":0.84303652968036524}]
["Hours of turbine operations, hrs",2,1933.5,1360,2067,2024.5,7385,{"$f":"+G56/$I$53","v":0.84303652968036524}]
["Hours of heat / steam export",null,null,null,null,null,0,{"$f":"IF(B57>0,G56/I53,\"n/a\")","v":"n/a"}]
["Net Calorific Value of waste","MJ/kg",14.798,16.204999999999998,16.317,14.456]
["Abnormal Events","qty.",0,1,0,0,1,{"$f":"IF(G59>0,\"yes\",\"no\")","v":"yes"}]
["Abnormal operation","hours",0,2,0,0,2,{"$f":"+(G60)/I53","v":2.2831050228310502E-4}]
["Permit Breaches","qty.",0,0,0,1,1,{"$f":"IF(G61>0,\"yes\",\"no\")","v":"yes"}]

{"sheet":"Operational Summary","index":4,"n_rows":31,"n_cols":11,"rows_kept":31,"cut":false,"hidden":false,"merged":[[4,0,26,8],[30,0,51,8],[4,10,13,13],[30,10,39,13]]}
[{"$f":"+'Cover Page'!$B$29","v":"Annual Performance Report 2023"},null,null,null,{"$f":"+'Cover Page'!$B$33","v":"Slough Heat and Power Station"}]
[]
["Summary of Plant Operations and Maintenance during the reporting year",null,null,null,null,null,null,null,null,null,"Notes:"]
[]
["During 2023 124,673 tonnes of waste wood and 417 tonnes of gas was utilised on B17 (EfW ininerator) to generate 82,825 MWh of electricity and contribute to 46,122 MWh of steam/hot water produced by the site overall. \nThe performance of plant has improved significantly based on previous years, with fewer periods of unplanned maintenance and longer operational hours.\nThe boiler was off-line between mid-April to mid-May to complete the scheduled annual outage works. The significant maintenance undertaken in this period included upgrading the economiser banks to finned design. ",null,null,null,null,null,null,null,null,null,"Include summary of key operational and/or mainteanance activity undertaken in the year, such as any major component upgrades and/or replacements "]
[]
[]
[]
[]
[]
[]
[]
[]
[]
[]
[]
[]
[]
[]
[]
[]
[]
[]
[]
[]
[]
[]
[]
["Summary of Residue Handling for the reporting year"]
[]
["The site generated 9601 tonnes of residue this year. This included 2314 tonnes of APC residue, 5678 tonnes of bottom ash and 1609 of fly ash. These are classified as hazardous and transported via tankers/tippers to Peterborough under waste code D09. \n",null,null,null,null,null,null,null,null,null,"Include in here a summary of residue handling regimes and destinations "]

{"sheet":"Perf. Form 1","index":5,"n_rows":54,"n_cols":10,"rows_kept":54,"cut":false,"hidden":false,"merged":[[9,0,9,9],[10,0,10,1],[10,2,10,3],[10,4,10,5],[10,6,10,7],[10,8,10,9],[2,0,2,4],[2,6,2,8],[3,1,3,4],[5,3,5,4],[5,6,5,7],[8,0,8,1],[8,2,8,3],[8,4,8,5],[8,6,8,7],[8,8,8,9],[11,0,11,1],[11,2,11,3],[11,4,11,5],[11,6,11,7],[11,8,11,9],[12,0,12,1],[12,2,12,3],[12,4,12,5],[12,6,12,7],[12,8,12,9],[15,0,15,1],[15,2,15,3],[15,4,15,5],[15,6,15,7],[15,8,15,9],[16,0,16,9],[13,0,13,1],[13,2,13,3],[13,4,13,5],[13,6,13,7],[13,8,13,9],[14,0,14,3],[14,4,14,5],[14,6,14,7],[14,8,14,9],[17,0,17,1],[17,2,17,3],[17,4,17,5],[17,6,17,7],[17,8,17,9],[18,0,18,1],[18,2,18,3],[18,4,18,5],[18,6,18,7],[18,8,18,9],[19,0,19,1],[19,2,19,3],[19,4,19,5],[19,6,19,7],[19,8,19,9],[20,0,20,1],[20,2,20,3],[20,4,20,5],[20,6,20,7],[20,8,20,9],[21,0,21,1],[21,2,21,3],[21,4,21,5],[21,6,21,7],[21,8,21,9],[22,0,22,3],[22,4,22,5],[22,6,22,7],[22,8,22,9],[31,0,31,3],[31,7,31,8],[32,0,32,3],[32,4,32,5],[32,7,32,8],[33,0,33,3],[33,4,33,5],[33,7,33,8],[23,0,23,3],[23,4,23,5],[23,6,23,7],[23,8,23,9],[25,0,25,9],[26,0,28,9],[36,0,36,3],[36,4,36,5],[36,7,36,8],[37,0,37,3],[37,4,37,5],[37,7,37,8],[34,0,34,3],[34,4,34,5],[34,7,34,8],[35,0,35,3],[35,4,35,5],[35,7,35,8],[47,0,47,1],[49,0,49,9],[50,0,51,9],[38,0,38,9],[39,0,40,9],[43,0,43,1],[43,2,43,9],[45,0,45,1],[46,0,46,1]]}
[{"$f":"+'Cover Page'!C39","v":2023}," Annual Reporting Performance Form 1"]
[]
[{"$f":"+'Cover Page'!B31","v":"Permit EPR/CP3031SX"},null,null,null,null,"Operator: ",{"$f":"+_xlfn.SINGLE('Cover Page'!B37)","v":"Slough Heat and Power Limited"}]
["Facility:",{"$f":"+'Cover Page'!B33:I33","v":"Slough Heat and Power Station"},null,null,null,"Form:","Performance 1"]
[]
["Reporting  Period from: ",null,null,"2023-01-01",null,"to:","2023-12-31"]
[]
[{"$f":"+A1","v":2023},"Annual Reporting of Waste Disposal and Recovery"]
["Waste Description",null,"Disposal Route(s)",null,"Disposal Tonnes",null,"Recovery Tonnes",null,"% / tonne of waste incinerated"]
["1) Hazardous Wastes"]
["APC Residues",null,"D09",null,2314.3739999999998,null,0,null,{"$f":"IF((E11+G11)>0,(E11+G11)/'Operational Data'!$G$21, \"-\")","v":1.8563554257938767E-2}]
["IBA",null,"D09",null,5677.7910000000002,null,0,null,{"$f":"IF((E12+G12)>0,(E12+G12)/'Operational Data'!$G$21, \"-\")","v":4.5541464471056288E-2}]
["FGT and Fly Ash",null,"D09",null,1608.691,null,0,null,{"$f":"IF((E13+G13)>0,(E13+G13)/'Operational Data'!$G$21, \"-\")","v":1.2903282988297387E-2}]
[null,null,null,null,null,null,null,null,{"$f":"IF((E14+G14)>0,(E14+G14)/'Operational Data'!$G$21, \"-\")","v":"-"}]
["Total Hazardous Waste",null,null,null,{"$f":"SUM(E11:F14)","v":9600.8559999999998},null,{"$f":"SUM(G11:H14)","v":0},null,{"$f":"IF((E15+G15)>0,(E15+G15)/'Operational Data'!$G$21, \"-\")","v":7.7008301717292435E-2}]
[]
["2) Non-Hazardous Wastes"]
["IBA",null,null,null,null,null,null,null,{"$f":"IF((E18+G18)>0,(E18+G18)/'Operational Data'!$G$21, \"-\")","v":"-"}]
["Ferrous Metal",null,"R04",null,0,null,234.7,null,{"$f":"IF((E19+G19)>0,(E19+G19)/'Operational Data'!$G$21, \"-\")","v":1.8825246845748478E-3}]
["Process Water",null,"D09",null,27,null,0,null,{"$f":"IF((E20+G20)>0,(E20+G20)/'Operational Data'!$G$21, \"-\")","v":2.1656653806357431E-4}]
["General Waste",null,"R03",null,0,null,34.299999999999997,null,{"$f":"IF((E21+G21)>0,(E21+G21)/'Operational Data'!$G$21, \"-\")","v":2.751197131696518E-4}]
["Oily Water",null,"D09",null,10.34,null,0,null,{"$f":"IF((E22+G22)>0,(E22+G22)/'Operational Data'!$G$21, \"-\")","v":8.2936963095457721E-5}]
["Total Non-Hazardous Waste",null,null,null,{"$f":"SUM(E18:F22)","v":37.340000000000003},null,{"$f":"SUM(G18:H22)","v":269},null,{"$f":"IF((E23+G23)>0,(E23+G23)/'Operational Data'!$G$21, \"-\")","v":2.4571478989035317E-3}]
["TOTAL WASTE",null,null,null,{"$f":"+E23+E15","v":9638.1959999999999},null,{"$f":"+G23+G15","v":269},null,{"$f":"IF((E24+G24)>0,(E24+G24)/'Operational Data'!$G$21, \"-\")","v":7.9465449616195963E-2}]
[]
["Operator’s comments :"]
["The above constitute the main disposal waste transfer streams from site, a more detailed assessment is provided on the quarterly waste returns. Additionally process effluent is discharged under consent through foul sewer which is not included here. "]
[]
[]
[]
[{"$f":"+A1","v":2023},"Annual Reporting of Water and Other Raw Material Usage"]
["Raw Material",null,null,null,"Usage",null,"Unit","Specific Useage",null,"Unit"]
["Mains Water",null,null,null,{"$f":"+'Operational Data'!G42","v":1466},null,"m3",{"$f":"IF(E33>0,E33/'Operational Data'!$G$21,\"-\")","v":1.175876091856296E-2},null,"m3/te"]
["Total Water",null,null,null,{"$f":"+'Operational Data'!G43+'Operational Data'!G42","v":395407},null,"m3",{"$f":"IF(E34>0,E34/'Operational Data'!$G$21,\"-\")","v":3.1715527820779159},null,"m3/te"]
["Urea / Ammonia",null,null,null,{"$f":"+'Operational Data'!G45","v":27200},null,"kg",{"$f":"IF(E35>0,E35/'Operational Data'!$G$21,\"-\")","v":0.21817073464182302},null,"kg/te"]
["Activated Carbon",null,null,null,{"$f":"+'Operational Data'!G46","v":6},null,"kg",{"$f":"IF(E36>0,E36/'Operational Data'!$G$21,\"-\")","v":4.8125897347460956E-5},null,"kg/te"]
["Lime / hydrated lime / Sodium Bicarb.",null,null,null,{"$f":"+'Operational Data'!G47","v":1883},null,"kg",{"$f":"IF(E37>0,E37/'Operational Data'!$G$21,\"-\")","v":1.5103510784211497E-2},null,"kg/te"]
[]
["Operator’s comments :"]
["The mains water referes to the public water supply, the majority of the water consumed is provided by the SHP private water network."]
[]
[]
[{"$f":"+A31","v":2023},"Annual Reporting of other performance indicators "]
["Parameter",null,"Results by Line"]
[null,null,"A1","A2","A3","A4","A5",null,"Turbine 1","Turbine 2"]
["Operating hours for the year, hours",null,7385,null,null,null,null,null,7385,7385]
["Number of periods of abnormal operation, qty.",null,1]
["Cumulative hours of abnormal operation for this year, hours",null,2]
[]
["Operator’s comments :"]
["The incinerator plant underwent its planned outage between mid-April to mid-May (approx 30 days) for scheduled maintenance"]
[]
[]
["Signed: ","A. KERSHAW",null,null,null,null,"Date:","2024-01-24"]

{"sheet":"Energy Form 1","index":6,"n_rows":29,"n_cols":8,"rows_kept":29,"cut":false,"hidden":false,"merged":[[2,6,2,8],[4,1,4,4],[6,3,6,4],[6,6,6,7],[8,0,8,2],[8,3,8,4],[8,6,8,8],[9,0,9,2],[9,3,9,4],[9,6,9,8],[10,0,10,2],[10,3,10,4],[10,6,10,8],[11,0,11,2],[11,3,11,4],[11,6,11,8],[12,0,12,2],[12,3,12,4],[12,6,12,8],[13,0,13,2],[13,3,13,4],[13,6,13,8],[14,0,14,2],[14,3,14,4],[14,6,14,8],[15,0,15,2],[15,3,15,4],[15,6,15,8],[17,0,17,8],[18,0,24,8]]}
[{"$f":"+'Cover Page'!C39","v":2023}," Annual Reporting of Energy Usage/Export"]
[]
[{"$f":"+'Cover Page'!B31","v":"Permit EPR/CP3031SX"},null,null,null,null,"Operator: ",{"$f":"+_xlfn.SINGLE('Cover Page'!B37)","v":"Slough Heat and Power Limited"}]
[]
["Facility:",{"$f":"+'Cover Page'!B33:I33","v":"Slough Heat and Power Station"},null,null,null,"Form:","Energy 1"]
[]
["Reporting  Period from: ",null,null,{"$f":"+'Perf. Form 1'!D6:E6","v":"2023-01-01"},null,"to:",{"$f":"+'Perf. Form 1'!G6:H6","v":"2023-12-31"}]
[]
["Energy Source",null,null,"Energy Usage",null,"Unit","Specific Useage (KWh/tonne incinerated"]
["Electricity Produced",null,null,{"$f":"+'Operational Data'!G24","v":82825},null,"MWh",{"$f":"+'Operational Data'!H24","v":664.33790796724236}]
["Electricity Imported   ",null,null,{"$f":"+'Operational Data'!G27","v":10617},null,"MWh",{"$f":"+'Operational Data'!H27","v":85.158775356332171}]
["Electricity Exported",null,null,{"$f":"+'Operational Data'!G25","v":72209},null,"MWh",{"$f":"+'Operational Data'!H25","v":579.18715359380144}]
["Gas Oil",null,null,null,null,"tonnes"]
["Steam/hot water exported",null,null,{"$f":"+'Operational Data'!G30","v":46122},null,"GWh",{"$f":"+'Operational Data'!H30","v":369.94377290993236}]
[]
[]
[]
["Operator’s comments :"]
["Energy usage and production has significantly improved on typical years due to improved reliability\nof the incineration process. "]
[]
[]
[]
[]
[]
[]
[]
[]
[]
["Signed: ","A> KERSHAW",null,null,null,null,"Date:","2024-01-24"]

{"sheet":"Permit Compliance","index":7,"n_rows":34,"n_cols":12,"rows_kept":34,"cut":false,"hidden":false,"merged":[[33,4,33,8],[9,0,9,1],[9,2,9,4],[9,5,9,8],[10,0,10,1],[10,2,10,4],[10,5,10,8],[11,0,11,1],[11,2,11,4],[11,5,11,8],[12,0,12,1],[12,2,12,4],[12,5,12,8],[13,0,13,1],[13,2,13,4],[13,5,13,8],[7,0,7,1],[7,2,7,8],[8,0,8,1],[8,2,8,4],[8,5,8,8],[14,0,14,1],[14,2,14,4],[14,5,14,8],[15,0,15,1],[16,2,16,4],[16,5,16,8],[15,2,15,4],[15,5,15,8],[16,0,16,1],[19,1,19,3],[19,4,19,6],[19,7,19,9],[20,1,20,3],[20,4,20,6],[20,7,20,9],[21,1,21,3],[21,4,21,6],[21,7,21,9],[22,1,22,3],[22,4,22,6],[22,7,22,9],[24,4,24,6],[32,1,32,3],[32,4,32,6],[32,7,32,9],[29,1,29,3],[29,4,29,6],[29,7,29,9],[30,1,30,3],[30,4,30,6],[30,7,30,9],[24,7,24,9],[8,11,16,11],[26,0,26,10],[18,0,18,10],[31,1,31,3],[31,4,31,6],[31,7,31,9],[27,1,27,3],[27,4,27,6],[27,7,27,9],[28,1,28,3],[28,4,28,6],[28,7,28,9],[23,1,23,3],[23,4,23,6],[23,7,23,9],[24,1,24,3]]}
[{"$f":"+'Cover Page'!$B$29","v":"Annual Performance Report 2023"},null,null,null,{"$f":"+'Cover Page'!$B$33","v":"Slough Heat and Power Station"}]
[]
["Summary of Permit Compliance"]
[]
["Compliance with permit limits for continuously monitored pollutants"]
[]
["The plant met its emission limits as shown in the table below:"]
["Substance",null,"Percentage time compliant during operationNote 1",null,null,null,null,null,null,null,null,"Notes:"]
[null,null,"Half-hourly limit",null,null,"Daily limit",null,null,null,null,null,"Note 1: Please report to 2 decimal places, i.e. xx.xx%\n\nNote 2: Please provide a brief summary of each notification or non-compliance in the table (rather than just referring to notifications that were sent to the Regulator), including stating the value of measured result for any ELV exceedances.   \n\n"]
["Particulates",null,1,null,null,1]
["Oxides of nitrogen",null,1,null,null,1]
["Sulphur dioxide",null,1,null,null,1]
["Carbon monoxide",null," \n100% 95% of 10-min averages",null,null,1]
["Total organic carbon",null,1,null,null,1]
["Hydrogen chloride",null,1,null,null,1]
["Hydrogen fluoride",null,"N/A",null,null,"N/A"]
[]
[]
["Summary of any notifications or non-compliances under the permit"]
["Date","Summary of notification or non-compliance [including Line/Reference]Note 2",null,null,"Reason ",null,null,"Measures taken to prevent reoccurrence"]
["2023-03-30","Momentary loss of furnace temperature (<800degC)",null,null,"Fuel blockage/Burner Delay"]
["2023-12-31","B17 total annual throughput exceeded permitted limit by 4,674 tonnes",null,null,"Annual calculations were based on estimates prior to reconcling of weighbridge data at year end, as well as new tube banks resulting in a greater temporary performance improvement than expected. Unlikely to be repeated in coming years. ",null,null,"New weighbridge system in place and close monitoring of daily data once 90% of the permitted limit is reached. Considering application for an increase in the permitted annual throughput limit."]
[]
[]
[]
[]
["Summary of any complaints received and actions to taken to resolve them."]
["Date","Summary of complaint [including Line/Reference]",null,null,"Reason *",null,null,"Measures taken to prevent reoccurrence"]
["2023-12-13","Dust Release observed by member of public",null,null,"Under Investigation (EA graphic)",null,null,"Under Investigation - Operations Informed"]
[]
[]
[]
[]
[null,null,null,null,"* including whether substantiated by the operator or the EA"]

{"sheet":"Improvements","index":8,"n_rows":39,"n_cols":5,"rows_kept":39,"cut":false,"hidden":false,"merged":[[37,0,37,8],[38,0,47,8],[4,0,4,8],[5,0,13,8],[15,0,15,8],[16,0,24,8],[26,0,26,8],[27,0,35,8]]}
[{"$f":"+'Cover Page'!$B$29","v":"Annual Performance Report 2023"},null,null,null,{"$f":"+'Cover Page'!$B$33","v":"Slough Heat and Power Station"}]
[]
["Summary of Plant Improvements"]
[]
["Summary of any efficiency improvements that have been completed within the year."]
["Replacement of finned tubed economiser bundles in the boiler resulting in increased reliability\n and energy efficiency."]
[]
[]
[]
[]
[]
[]
[]
[]
[]
["Summary of any permit improvement conditions that have been completed within the year and the resulting environmental benefits."]
["IC 2 - Extended assessment of air emisssions to demonstrate that Mercury releases are low and stable \nIC 3 - Extended assessment of air emissions to demonstrate that Dioxin releases are low and stable.\nIC 4 - Evaluation of energy efficiency of the plant and assesment to identify potential improvements to efficiency going forward. "]
[]
[]
[]
[]
[]
[]
[]
[]
[]
["Summary of any changes to the plant or operating techniques which required a variation to the permit and a summary of the resulting environmental impact."]
["Minor variation applied to extend waste codes to potential contamination from the waste wood supply market\nfollowing consultation from the EA. Changes will involve increased surveillance of wood supply inputs upstream at the supply source and during process."]
[]
[]
[]
[]
[]
[]
[]
[]
[]
["Summary of any other improvements made to the plant or planned to be made and a summary of the resulting environmental benefits."]
["Following BREF review and permit variation in 2022, replacement CEMs were installed in 2023 this includes additional species, N2O, NH3 and CO2. \nAdditionally SNCR (selective non-catalytic reductionl) test equipment was deployed on the plant using Urea to inhibit NOx formation. Going forward a complete SNCR is currently under design to maintain NOx emissions \nto acceptable levels. \n"]

{"sheet":"Public Liasion","index":9,"n_rows":29,"n_cols":5,"rows_kept":29,"cut":false,"hidden":false,"merged":[[16,0,16,1],[16,2,16,8],[5,0,5,1],[5,2,5,8],[6,0,7,1],[6,2,7,8],[8,0,9,1],[8,2,9,8],[10,0,11,1],[10,2,11,8],[12,0,13,1],[12,2,13,8],[15,0,15,8],[17,0,18,1],[17,2,18,8],[19,0,20,1],[19,2,20,8],[21,0,22,1],[21,2,22,8],[23,0,24,1],[23,2,24,8],[25,0,26,1],[25,2,26,8],[28,0,28,8]]}
[{"$f":"+'Cover Page'!$B$29","v":"Annual Performance Report 2023"},null,null,null,{"$f":"+'Cover Page'!$B$33","v":"Slough Heat and Power Station"}]
[]
["Details of Public & Stakeholder Liasion"]
[]
["Summary of events held during the reporting year."]
["Date",null,"Description"]
[]
[]
[]
[]
[]
[]
[]
[]
[]
["List of events planned for next year"]
["Date",null,"Description"]
[]
[]
[]
[]
[]
[]
[]
[]
[]
[]
[]
["If you wish to be involved in the public liasion programme, please contact _________________"]

{"sheet":"CO2 N2O","index":10,"n_rows":23,"n_cols":6,"rows_kept":23,"cut":false,"hidden":false,"merged":[[20,2,20,3],[23,1,23,3],[16,2,16,3],[4,0,4,3],[9,0,9,3],[17,0,17,3],[13,0,13,3],[12,0,12,1],[8,2,8,3],[11,2,11,3]]}
[{"$f":"+'Cover Page'!$B$29","v":"Annual Performance Report 2023"},null,{"$f":"+'Cover Page'!$B$33","v":"Slough Heat and Power Station"}]
[]
["Carbon dioxide emissions and biogenic content of waste inputs",null,null,null,null,"Notes:"]
[]
["Carbon dioxide emissions (all types of plant)"]
[null,"Annual mass of carbon dioxide released","tonnes ",197119.17217616609]
[null,"Annual mass of carbon dioxide released per tonne of waste burned","t CO2 / t waste ",{"$f":"D6/'Operational Data'!G21","v":1.5810895075611087}]
[null,"Annual mass of carbon dioxide released per MWh of energy exported","t CO2 / MWh export ",{"$f":"D6/('Operational Data'!G25+'Operational Data'!G30)","v":1.6658286685328958}]
[null,"Description of how annual carbon dioxide mass emission has been calculated. \nSee Note 1","Derived from GHG inventory reporting.",null,null,"Note 1: Where available, data from CO2 CEMS should be used. \nOtherwise, only where no CEMS data is available, a suitable emissions factor should be used based on the tonnage of waste burned e.g.0.942 tCO2/t waste as per Tolvik report 2022, or other justified emissions factor  - refer to embedded Environment Agency guidance note above or updated version for suitable descriptive text."]
["Nitrous oxide emissions (only plants which use ammonia or urea to abate NOx emissions)"]
[null,"Annual mass emissions of nitrous oxide","tonnes N2O",12.23]
[null,"Description of how annual nitrous oxide mass emission has been calculated\nSee Note 2","Use of emission factor (N2O CEMs were only partially availble in 2023)",null,null,"Note 2: Where available, data from N2O CEMS should be used. \nIf no CEMS data is available, from periodic monitoring. Otherwise, a suitable emissions factor should be used based on the tonnage of waste burned e.g. 0.0981 kgN20/t waste as per 2021 Pollution Inventory data for plants with urea-based SNCR - refer to embedded Environment Agency guidance note above or updated version for suitable descriptive text."]
["Total annual carbon dioxide and nitrous oxide emissions. \nSee Note 3. ",null,"tonnes CO2e",{"$f":"D6+(D11*298)","v":200763.7121761661},null,"Note 3: Total annual carbon dioxide and nitrous oxide emissions reported as carbon dioxide equivalent where 1 tonne nitrous oxide is equivalent to 298 tonne carbon dioxide"]
["Biogenic CO2 emissions (See Note 4)",null,null,null,null,"Note 4: Only plants combusting residual municipal waste, refuse derived fuel or solid recovered fuel"]
[null,"Percentage of total carbon dioxide emissions arising from biogenic waste","%",0.95399999999999996]
[null,"No. of measurements undertaken","Number",11]
[null,"Description of how percentage biogenic carbon dioxide emissions have been measured or calculated.\nSee Note 5","Derived from GHG inventory reporting, site remains an ETS participant for CO2 releases. The above figure is preliminary but of reasonably accuracy - awaiting final fuel analysis for Dec '23",null,null,"Note 5: Examples include direct measurement via C14 method or BIOMA software - refer to embedded Environment Agency guidance note above or updated version for suitable descriptive text, quoting standards where relevant. \nOtherwise, as an approximation (and in lieu of any more accurate metrics which may be developed in future), the measured or estimated biogenic fraction by net calorific value can be assumed to be the same as the biogenic CO2 fraction of the total CO2 emissions from the plant. "]
["Biogenic fraction of waste feedstock (See Note 4)"]
[null,"Yearly average biogenic percentage of the waste by gross calorific value (GCV)**","%",0.96299999999999997]
[null,"If sampling undertaken, no. of samples used to ascertain average biogenic % above","Number",11]
[null,"Description of how biogenic percentage (by NCV) has been calculated or estimated. \nSee Note 6","Obtained from testing criteria from OFGEM guidance note - Renewables Obligation: template methodology for measuring fossil derived contamination within waste wood. (Average based on 11 monthly samples - awaiting final Dec analysis)",null,null,"Note 6: Where available, data from waste sampling should be used; otherwise, an estimated figure with justification can be used, or a figure assumed on the basis of a national average e.g. 2017 WRAP data for residual waste of 51.8% biogenic energy content - refer to embedded Environment Agency guidance note above or updated version for suitable descriptive text, quoting standards where relevant. "]
[]
[null,"Comments:"]

{"sheet":"Residue Quality ","index":11,"n_rows":36,"n_cols":6,"rows_kept":36,"cut":false,"hidden":false,"merged":[[16,0,17,1],[16,2,17,6],[18,0,19,1],[18,2,19,6],[12,0,12,6],[13,0,13,1],[13,2,13,6],[5,0,6,6],[7,0,8,6],[9,0,10,6],[14,0,15,1],[14,2,15,6],[20,0,21,1],[20,2,21,6],[22,0,23,1],[22,2,23,6],[31,3,31,4],[27,2,28,2],[28,3,28,4],[28,5,28,6],[27,3,27,6],[26,0,26,6],[35,0,40,6],[32,3,32,4],[34,0,34,6],[27,0,28,1],[29,0,29,1],[30,0,30,1],[31,0,31,1],[32,0,32,1],[29,3,29,4],[30,3,30,4],[29,5,29,6],[30,5,30,6],[31,5,31,6],[32,5,32,6]]}
[{"$f":"+'Cover Page'!$B$29","v":"Annual Performance Report 2023"},null,null,null,{"$f":"+'Cover Page'!$B$33","v":"Slough Heat and Power Station"}]
[]
["Residue Quality Monitoring Requirements"]
[]
["Summary of monitoring undertaken and compliance"]
["Monitoring of all ash streams using internal SHP document: WI-SLGH-SHE-001-ENV5-EMS-22 Ash Sampling.\nEA Guidance 'TGN  M4'. Analysis undertaken by external laboratory."]
[]
["Permit compliance monitoring was conducted on all ash (residue) streams with additional core hazardous \nproperty assesments underrtaken on the IBA sample(s)"]
[]
[]
[]
[]
["Commentary on any specific events"]
["Date & Event",null,"Description"]
[]
[]
[]
[]
[]
[]
[]
[]
[]
[]
[]
[]
["Residue Quality Monitoring Results"]
["Parameter (unit) ",null,"Limit","Normal Operation "]
[null,null,null,"Bottom ash  ",null,"APC Residues"]
["Loss on Ignition (average %)",null,"<5%",1.22]
["Total Organic Carbon (average %)",null,"<3%",1.28]
["No. of Assessments Undertaken",null,"---",4,null,4]
["No. of Hazardous Results",null,"---",4]
[]
["Comments :"]
["SHP has two bottom ash streams, oversize (>25mm) and undersize (<25mm). \nThe results above pertian to the undersize fraction which has higher LOI and TOC levels.\nThe average is based on 4 assesments taken over the year (quarterly)."]

{"sheet":"Water","index":12,"n_rows":23,"n_cols":9,"rows_kept":23,"cut":false,"hidden":false,"merged":[[5,0,6,8],[7,0,8,8],[9,0,10,8],[12,0,12,8],[13,0,13,1],[13,2,13,8],[21,0,21,8],[22,0,22,2],[22,3,22,4],[14,0,15,1],[14,2,15,8],[16,0,17,1],[16,2,17,8],[18,0,19,1],[18,2,19,8],[23,0,23,2],[23,3,23,4],[24,0,24,2],[24,3,24,4],[25,0,25,2],[25,3,25,4],[29,0,29,2],[29,3,29,4],[26,0,26,2],[26,3,26,4],[27,0,27,2],[27,3,27,4],[28,0,28,2],[28,3,28,4]]}
[{"$f":"+'Cover Page'!$B$29","v":"Annual Performance Report 2023"},null,null,null,{"$f":"+'Cover Page'!$B$33","v":"Slough Heat and Power Station"}]
[]
["Emissions to Water"]
[]
["Summary of monitoring undertaken and compliance"]
["The site does not emit to controlled waters, so no analytical assesment was undertaken.\nQualitative (visual) checks are carried out periodically for oil and grease with no indications recorded this year."]
[]
["The site does emit to foul sewer, this is controlled by a discharge to trade effluent consent and analysis is undertaken independently by the water utility. "]
[]
[]
[]
[]
["Commentary on any specific events"]
["Date & Event",null,"Description"]
[]
[]
[]
[]
[]
[]
[]
["Emissions to Water / Sewer"]
["Parameter",null,null,"Monitoring Frequency",null,"Limit","Target","Max.","Average"]

{"sheet":"Air (periodic)","index":13,"n_rows":40,"n_cols":13,"rows_kept":40,"cut":false,"hidden":false,"merged":[[5,10,8,13],[9,10,11,13],[8,0,8,9],[5,0,6,9],[11,0,11,1],[12,0,12,1],[11,3,11,4],[12,3,12,4],[9,0,10,1],[9,5,9,9],[9,3,10,4],[9,2,10,2],[16,0,16,1],[17,0,17,1],[18,0,18,1],[13,0,13,1],[14,0,14,1],[15,0,15,1],[39,0,40,9],[25,0,25,1],[26,0,26,1],[22,0,22,1],[23,0,23,1],[37,0,37,1],[27,0,27,1],[28,0,28,1],[29,0,29,1],[30,0,30,1],[31,0,31,1],[32,0,32,1],[37,3,37,4],[29,3,29,4],[30,3,30,4],[36,3,36,4],[38,0,38,9],[19,0,19,1],[20,0,20,1],[21,0,21,1],[34,3,34,4],[35,3,35,4],[33,0,33,1],[34,0,34,1],[35,0,35,1],[36,0,36,1],[24,0,24,1],[32,3,32,4],[27,3,27,4],[33,3,33,4],[19,3,19,4],[20,3,20,4],[21,3,21,4],[22,3,22,4],[23,3,23,4],[24,3,24,4],[31,3,31,4],[25,3,25,4],[26,3,26,4],[28,3,28,4],[13,10,14,12],[15,10,16,10],[15,11,16,11],[15,12,16,12],[18,3,18,4],[13,3,13,4],[14,3,14,4],[15,3,15,4],[16,3,16,4],[17,3,17,4]]}
[{"$f":"+'Cover Page'!$B$29","v":"Annual Performance Report 2023"},null,null,null,{"$f":"+'Cover Page'!$B$33","v":"Slough Heat and Power Station"}]
[]
["Emissions to Air (periodically monitored)"]
[]
["Summary of monitoring undertaken, standards used and compliance",null,null,null,null,null,null,null,null,null,"Notes:"]
["Monitoring and reporting undertaken by UKAS/MCERTS laboratory with full technical competency. Standards below. \nHF(CEM/TS17340:2020), Metals (EN 14385:2004), Hg (EN 13211:2001), Dioxins/PCBs (EN 1948-), PAHS (ISO 11338)",null,null,null,null,null,null,null,null,null,"Template may require adjustment for any bespoke monitoring requirements of permit - please also check that all default ELV values, reference periods and the stated oxygen reference value match those for your plant, and edit if necessary!"]
[]
[]
["Results of emissions to air that are periodically monitored - oxygen reference 11% "]
["Substance",null,"Ref. Period","Emission Limit Value*",null,"Average",null,null,null,null,"User to add additional tables as necessary, depending on whether quarterly or bi-annual reporting is required for the compliance year"]
[null,null,null,null,null,"A1","A2","A3","A4","A5"]
["Hydrogen fluoride",null,"1 hr","2 mg/m3",null,2.76E-2]
["Cd and Th and their compounds",null,"0.5-8hrs","0.05 mg/m3",null,6.7000000000000002E-4]
["Hg and its compounds",null,"0.5-8hrs","0.05 mg/m3",null,1.85E-4,null,null,null,null,"* Denotes limits that were in force until 2 December 2023; from 3 December 2023 the following new limits applied (those not listed remained unchanged):"]
["Sb, As, Pb, Cr, Co, Cu, Mn, Ni, V and their compounds",null,"0.5-8hrs","0.5 mg/m3",null,4.6699999999999998E-2]
["Dioxins & Furans (I-TEQ)",null,"6-8hrs","0.1 ng/m3",null,1E-3,null,null,null,null,"Substance","Reference Period","Emission Limit Value"]
["PCBs (WHO-TEQ Humans / Mammals)",null,"6-8hrs","None set ng/m3",null,3.0000000000000001E-5]
["PCBs (WHO-TEQ Fish)",null,"6-8hrs","None set ng/m3",null,1E-3,null,null,null,null,"Hydrogen fluoride","Average of three consecutive measurements of at least 30 minutes each","1 mg/m3"]
["PCBs (WHO-TEQ Birds)",null,"6-8hrs","None set ng/m3",null,1E-3,null,null,null,null,"Cd and Th and their compounds","Average of three consecutive measurements of at least 30 minutes each","0.02 mg/m3"]
["Dioxins & Furans (WHO-TEQ Humans / Mammals)",null,"6-8hrs","None set ng/m3",null,1E-3,null,null,null,null,"Hg and its compounds","Average of three consecutive measurements of at least 30 minutes each","0.02 mg/m3"]
["Dioxins & Furans (WHO-TEQ Fish)",null,"6-8hrs","None set ng/m3",null,3.9999999999999998E-7,null,null,null,null,"Sb, As, Pb, Cr, Co, Cu, Mn, Ni, V and their compounds","Average of three consecutive measurements of at least 30 minutes each","0.3 mg/m3"]
["Dioxins & Furans (WHO-TEQ Birds)",null,"6-8hrs","None set ng/m3",null,2E-3,null,null,null,null,"Dioxins & Furans (I-TEQ)","6-8hrs","0.06 ng/m3"]
["Anthanthrene",null,"6-8hrs","None set µg/m3",null,"<0.001"]
["Benzo(a)anthracene",null,"6-8hrs","None set µg/m3",null,"<0.001"]
["Benzo(a)pyrene",null,"6-8hrs","None set µg/m3",null,"<0.001"]
["Benzo(b)fluoranthene",null,"6-8hrs","None set µg/m3",null,"<0.001"]
["Benzo(b)naptho(2,1-d) thiophene",null,"6-8hrs","None set µg/m3",null,"<0.001"]
["Benzo(c)phenanthrene",null,"6-8hrs","None set µg/m3",null,"<0.001"]
["Benzo(ghi)perylene",null,"6-8hrs","None set µg/m3",null,2E-3]
["Benzo(k)fluoranthene",null,"6-8hrs","None set µg/m3",null,"<0.001"]
["Cholanthrene",null,"6-8hrs","None set µg/m3",null,"<0.001"]
["Chrysene",null,"6-8hrs","None set µg/m3",null,"<0.001"]
["Cyclopenta(cd)pyrene",null,"6-8hrs","None set µg/m3",null,"<0.001"]
["Dibenzo(ai)pyrene",null,"6-8hrs","None set µg/m3",null,"<0.001"]
["Dibenzo(ah)anthracene",null,"6-8hrs","None set µg/m3",null,"<0.001"]
["Fluoranthene",null,"6-8hrs","None set µg/m3",null,0.01]
["Indeno(123-cd) pyrene",null,"6-8hrs","None set µg/m3",null,"<0.001"]
["Naphthalene",null,"6-8hrs","None set µg/m3",null,5.0999999999999996]
["Comments :"]
["Units for results are equivalent to the ELV given."]

{"sheet":"Air (CEMS)","index":14,"n_rows":30,"n_cols":16,"rows_kept":30,"cut":false,"hidden":false,"merged":[[14,13,15,13],[14,14,15,14],[14,15,15,15],[12,13,13,15],[27,0,27,12],[29,0,30,12],[13,0,14,0],[5,0,6,12],[7,0,8,12],[10,0,10,12],[11,0,12,0],[11,2,12,2],[11,1,12,1],[11,3,11,4],[11,5,11,6],[11,7,11,8],[11,9,11,10],[11,11,11,12]]}
[{"$f":"+'Cover Page'!$B$29","v":"Annual Performance Report 2023"},null,null,null,null,null,null,null,{"$f":"+'Cover Page'!$B$33","v":"Slough Heat and Power Station"}]
[]
["Emissions to Air (continously monitored)"]
[null,null,null,null,null,null,null,null,null,null,null,null,null,"Notes:"]
["Summary of monitoring undertaken, standards used and compliance",null,null,null,null,null,null,null,null,null,null,null,null,"Template may require adjustment for any bespoke monitoring requirements of permit"]
["Monitoring is undertaken by MCERs Continuous Emission Monitors (CEMS) to the BS EN 19411 standard.",null,null,null,null,null,null,null,null,null,null,null,null,"Please check that all default ELV values match those for your plant and edit if necessary!"]
[null,null,null,null,null,null,null,null,null,null,null,null,null,"Report to 1 decimal place"]
[]
[]
[]
["Results of emissions to air that are continuously monitored (maximum and average values for each line) - oxygen reference 11%"]
["Substance","Reference Period","Emission Limit Value**","A1",null,"A2",null,"A3",null,"A4",null,"A5"]
[null,null,null,"Max.","Avg.","Max.","Avg.","Max.","Avg.","Max.","Avg.","Max.","Avg.","** Denotes limits that were in force until 2 December 2023; from 3 December 2023 the following new limits applied (those not listed remained unchanged):"]
["Oxides of nitrogen","Daily mean","200 mg/m3 ",197,161.24087324789494]
[null,"½ hourly mean","400 mg/m3 ",225.75,161.2992655244374,null,null,null,null,null,null,null,null,"Substance","Reference Period","Emission Limit Value"]
["Particulates","Daily mean","10 mg/m3",5.55,2.6532181580469953]
[null,"½ hourly mean","30 mg/m3 ",11.86,2.6572484459309567,null,null,null,null,null,null,null,null,"Oxides of nitrogen","Daily mean","180 mg/m3 "]
["Total Organic Carbon ","Daily mean","10 mg/m3 ",1.43,0.55620161665707657,null,null,null,null,null,null,null,null,"Particulates","Daily mean","5 mg/m3 "]
[null,"½ hourly mean","20 mg/m3 ",5.22,0.54627634372346345,null,null,null,null,null,null,null,null,"Hydrogen chloride","Daily mean","8 mg/m3 "]
["Hydrogen chloride ","Daily mean","10 mg/m3 ",5.29,1.599838016384596,null,null,null,null,null,null,null,null,"Sulphur dioxide","Daily mean","40 mg/m3 "]
[null,"½ hourly mean","60 mg/m3 ",16.2,1.6035395912835793,null,null,null,null,null,null,null,null,"Ammonia","Daily mean","15 mg/m3 "]
["Sulphur dioxide","Daily mean","50 mg/m3 ",48,40.338004895549396]
[null,"½ hourly mean","200 mg/m3 ",109.88,40.393968622220136]
["Carbon monoxide ","Daily mean","50 mg/m3 ",48,26.784146930089648]
[null,"½ hourly mean *","100 mg/m3 *","N/A","N/A"]
[null,"95%ile 10-min avg *","150 mg/m3 *",118.05549999999985,88.456166666666661]
[" Ammonia","Daily mean","No limit set until 03/12/23",2.48,0.8]
["** = delete as appropriate, depending on whether your plant has half-horly or 10-min CO ELVs\n"]
["Comments :"]
["SHP monitors CO using the 95%ile of 10min averaged. Ammonia CEMs available from Dec '23 only (partial year)."]

{"sheet":"HCl","index":15,"n_rows":79,"n_cols":17,"rows_kept":79,"cut":false,"hidden":false,"merged":[[12,16,15,18],[51,9,63,9],[66,9,78,9],[4,9,4,14],[4,1,4,3],[4,4,4,6],[48,0,51,6],[47,0,47,6],[6,9,18,9],[21,9,33,9],[36,9,48,9],[3,16,7,18],[9,16,11,18],[18,4,18,6]]}
[{"$f":"+'Cover Page'!$B$29","v":"Annual Performance Report 2023"},null,null,null,{"$f":"+'Cover Page'!$B$33","v":"Slough Heat and Power Station"}]
[]
["Monitoring of Hydrogen Chloride emissions",null,null,"Whole Installation",null,null,"See  Notes in Cell Q3",null,null,{"$f":"+A3","v":"Monitoring of Hydrogen Chloride emissions"},null,null,null,"Per Combustion Line",null,null,"Notes:"]
[null,null,null,null,null,null,null,null,null,null,null,null,null,null,null,null,"User to add logic to complete Whole installation, Table A5:G18. From the data in Per Combustion Line, Table J6:O79, subject to No. of lines installed"]
["mg/Nm3","1/2 Hourly Reference Periods",null,null,"Daily Reference Periods"]
[{"$f":"+'Cover Page'!C39","v":2023},"1/2 hourly HCl ELV","Monthly 1/2 hourly mean","Highest 1/2 hourly maximum","Daily HCl ELV*","Monthly daily mean","Highest daily maximum",null,null,{"$f":"+A6","v":2023},"mg/Nm3","Monthly 1/2 hourly mean","Monthly 1/2 hourly maximum","Monthly daily mean","Monthly daily maximum"]
["Jan",60,2.3343587662337693,10.69,10,2.3211538461538463,3.69,null,null,"A1","Jan",2.3343587662337693,10.69,2.3211538461538463,3.69]
["Feb",60,3.3927524308152579,11.18,10,3.3939285714285718,4.09,null,null,null,"Feb",3.3927524308152579,11.18,3.3939285714285718,4.09]
["Mar",60,3.0481911532385424,16.2,10,3.0300000000000007,5.29,null,null,null,"Mar",3.0481911532385424,16.2,3.0300000000000007,5.29,null,"Whole Installation table A5:G18:"]
["Apr",60,2.6359528907922902,7.65,10,2.6380000000000003,3.37,null,null,null,"Apr",2.6359528907922902,7.65,2.6380000000000003,3.37,null,"Mean: for 1/2 hourly and daily periods calculate mean of values across all operational combustion lines for the month"]
["May",60,0.90349282296650624,3.37,10,0.90999999999999992,1.51,null,null,null,"May",0.90349282296650624,3.37,0.90999999999999992,1.51]
["Jun",60,1.0583356741573029,3.8,10,1.0573333333333335,1.86,null,null,null,"Jun",1.0583356741573029,3.8,1.0573333333333335,1.86]
["Jul",60,0.88643741403026044,2.61,10,0.89064516129032267,1.37,null,null,null,"Jul",0.88643741403026044,2.61,0.89064516129032267,1.37,null,"Maximum: for 1/2 hourly and daily periods use the highest value across all operational combustion lines for the month"]
["Aug",60,0.98457943925233826,3.73,10,0.98344827586206907,1.26,null,null,null,"Aug",0.98457943925233826,3.73,0.98344827586206907,1.26]
["Sep",60,1.0592598303777951,2.69,10,1.0540740740740739,1.62,null,null,null,"Sep",1.0592598303777951,2.69,1.0540740740740739,1.62]
["Oct",60,1.0060757780784839,4.2300000000000004,10,0.9966666666666667,1.39,null,null,null,"Oct",1.0060757780784839,4.2300000000000004,0.9966666666666667,1.39]
["Nov",60,1.0864662273476111,5.28,10,1.0957692307692308,1.78,null,null,null,"Nov",1.0864662273476111,5.28,1.0957692307692308,1.78]
["Dec",60,0.84657266811280019,2.4300000000000002,10,0.82703703703703713,1.1499999999999999,null,null,null,"Dec",0.84657266811280019,2.4300000000000002,0.82703703703703713,1.1499999999999999]
[null,null,null,null,"* ELV reduced to 8 mg/Nm3 on 3 December 2023",null,null,null,null,null,"Annual",{"$f":"AVERAGE(L7:L18)","v":1.6035395912835793},{"$f":"MAX(M7:M18)","v":16.2},{"$f":"AVERAGE(N7:N18)","v":1.599838016384596},{"$f":"MAX(O7:O18)","v":5.29}]
[]
[null,null,null,null,null,null,null,null,null,{"$f":"+A6","v":2023},"mg/Nm3","Monthly 1/2 hourly mean","Monthly 1/2 hourly maximum","Monthly daily mean","Monthly daily maximum"]
[null,null,null,null,null,null,null,null,null,"A2","Jan"]
[null,null,null,null,null,null,null,null,null,null,"Feb"]
[null,null,null,null,null,null,null,null,null,null,"Mar"]
[null,null,null,null,null,null,null,null,null,null,"Apr"]
[null,null,null,null,null,null,null,null,null,null,"May"]
[null,null,null,null,null,null,null,null,null,null,"Jun"]
[null,null,null,null,null,null,null,null,null,null,"Jul"]
[null,null,null,null,null,null,null,null,null,null,"Aug"]
[null,null,null,null,null,null,null,null,null,null,"Sep"]
[null,null,null,null,null,null,null,null,null,null,"Oct"]
[null,null,null,null,null,null,null,null,null,null,"Nov"]
[null,null,null,null,null,null,null,null,null,null,"Dec"]
[null,null,null,null,null,null,null,null,null,null,"Annual",{"$f":"AVERAGE(L22:L33)","v":{"$error":"#DIV/0!"}},{"$f":"MAX(M22:M33)","v":0},{"$f":"AVERAGE(N22:N33)","v":{"$error":"#DIV/0!"}},{"$f":"MAX(O22:O33)","v":0}]
[]
[null,null,null,null,null,null,null,null,null,{"$f":"+A6","v":2023},"mg/Nm3","Monthly 1/2 hourly mean","Monthly 1/2 hourly maximum","Monthly daily mean","Monthly daily maximum"]
[null,null,null,null,null,null,null,null,null,"A3","Jan"]
[null,null,null,null,null,null,null,null,null,null,"Feb"]
[null,null,null,null,null,null,null,null,null,null,"Mar"]
[null,null,null,null,null,null,null,null,null,null,"Apr"]
[null,null,null,null,null,null,null,null,null,null,"May"]
[null,null,null,null,null,null,null,null,null,null,"Jun"]
[null,null,null,null,null,null,null,null,null,null,"Jul"]
[null,null,null,null,null,null,null,null,null,null,"Aug"]
[null,null,null,null,null,null,null,null,null,null,"Sep"]
[null,null,null,null,null,null,null,null,null,null,"Oct"]
[null,null,null,null,null,null,null,null,null,null,"Nov"]
["Comments :",null,null,null,null,null,null,null,null,null,"Dec"]
[null,null,null,null,null,null,null,null,null,null,"Annual",{"$f":"AVERAGE(L37:L48)","v":{"$error":"#DIV/0!"}},{"$f":"MAX(M37:M48)","v":0},{"$f":"AVERAGE(N37:N48)","v":{"$error":"#DIV/0!"}},{"$f":"MAX(O37:O48)","v":0}]
[]
[null,null,null,null,null,null,null,null,null,{"$f":"+A6","v":2023},"mg/Nm3","Monthly 1/2 hourly mean","Monthly 1/2 hourly maximum","Monthly daily mean","Monthly daily maximum"]
[null,null,null,null,null,null,null,null,null,"A4","Jan"]
[null,null,null,null,null,null,null,null,null,null,"Feb"]
[null,null,null,null,null,null,null,null,null,null,"Mar"]
[null,null,null,null,null,null,null,null,null,null,"Apr"]
[null,null,null,null,null,null,null,null,null,null,"May"]
[null,null,null,null,null,null,null,null,null,null,"Jun"]
[null,null,null,null,null,null,null,null,null,null,"Jul"]
[null,null,null,null,null,null,null,null,null,null,"Aug"]
[null,null,null,null,null,null,null,null,null,null,"Sep"]
[null,null,null,null,null,null,null,null,null,null,"Oct"]
[null,null,null,null,null,null,null,null,null,null,"Nov"]
[null,null,null,null,null,null,null,null,null,null,"Dec"]
[null,null,null,null,null,null,null,null,null,null,"Annual",{"$f":"AVERAGE(L52:L63)","v":{"$error":"#DIV/0!"}},{"$f":"MAX(M52:M63)","v":0},{"$f":"AVERAGE(N52:N63)","v":{"$error":"#DIV/0!"}},{"$f":"MAX(O52:O63)","v":0}]
[]
[null,null,null,null,null,null,null,null,null,{"$f":"+A6","v":2023},"mg/Nm3","Monthly 1/2 hourly mean","Monthly 1/2 hourly maximum","Monthly daily mean","Monthly daily maximum"]
[null,null,null,null,null,null,null,null,null,"A5","Jan"]
[null,null,null,null,null,null,null,null,null,null,"Feb"]
[null,null,null,null,null,null,null,null,null,null,"Mar"]
[null,null,null,null,null,null,null,null,null,null,"Apr"]
[null,null,null,null,null,null,null,null,null,null,"May"]
[null,null,null,null,null,null,null,null,null,null,"Jun"]
[null,null,null,null,null,null,null,null,null,null,"Jul"]
[null,null,null,null,null,null,null,null,null,null,"Aug"]
[null,null,null,null,null,null,null,null,null,null,"Sep"]
[null,null,null,null,null,null,null,null,null,null,"Oct"]
[null,null,null,null,null,null,null,null,null,null,"Nov"]
[null,null,null,null,null,null,null,null,null,null,"Dec"]
[null,null,null,null,null,null,null,null,null,null,"Annual",{"$f":"AVERAGE(L67:L78)","v":{"$error":"#DIV/0!"}},{"$f":"MAX(M67:M78)","v":0},{"$f":"AVERAGE(N67:N78)","v":{"$error":"#DIV/0!"}},{"$f":"MAX(O67:O78)","v":0}]

{"sheet":"SO2","index":16,"n_rows":79,"n_cols":17,"rows_kept":79,"cut":false,"hidden":false,"merged":[[3,16,7,18],[9,16,11,18],[12,16,15,18],[66,9,78,9],[4,1,4,3],[4,4,4,6],[4,9,4,14],[6,9,18,9],[21,9,33,9],[36,9,48,9],[47,0,47,6],[48,0,51,6],[51,9,63,9],[18,4,18,6]]}
[{"$f":"+'Cover Page'!$B$29","v":"Annual Performance Report 2023"},null,null,null,{"$f":"+'Cover Page'!$B$33","v":"Slough Heat and Power Station"}]
[]
["Monitoring of Sulphur dioxide emissions",null,null,"Whole Installation",null,null,"See  Notes in Cell Q3",null,null,{"$f":"+A3","v":"Monitoring of Sulphur dioxide emissions"},null,null,null,"Per Combustion Line",null,null,"Notes:"]
[null,null,null,null,null,null,null,null,null,null,null,null,null,null,null,null,"User to add logic to complete Whole installation, Table A5:G18. From the data in Per Combustion Line, Table J6:O79, subject to No. of lines installed"]
["mg/Nm3","1/2 Hourly Reference Periods",null,null,"Daily Reference Periods"]
[{"$f":"+'Cover Page'!C39","v":2023},"1/2 hourly SO2 ELV","Monthly 1/2 hourly mean","Highest 1/2 hourly maximum","Daily SO2 ELV*","Monthly daily mean","Highest daily maximum",null,null,{"$f":"+A6","v":2023},"mg/Nm3","Monthly 1/2 hourly mean","Monthly 1/2 hourly maximum","Monthly daily mean","Monthly daily maximum"]
["Jan",200,38.853344155844212,85.7,50,38.730769230769234,44,null,null,"A1","Jan",38.853344155844212,85.7,38.730769230769234,44]
["Feb",200,39.874891548242296,109.88,50,39.857142857142854,45,null,null,null,"Feb",39.874891548242296,109.88,39.857142857142854,45]
["Mar",200,41.152306477093234,104.01,50,41.370370370370374,46,null,null,null,"Mar",41.152306477093234,104.01,41.370370370370374,46,null,"Whole Installation table A5:G18:"]
["Apr",200,43.075867237687397,75.349999999999994,50,43,47,null,null,null,"Apr",43.075867237687397,75.349999999999994,43,47,null,"Mean: for 1/2 hourly and daily periods calculate mean of values across all operational combustion lines for the month"]
["May",200,37.426662679425789,85.33,50,37.333333333333336,47,null,null,null,"May",37.426662679425789,85.33,37.333333333333336,47]
["Jun",200,42.14692415730341,104.88,50,42.103448275862071,47,null,null,null,"Jun",42.14692415730341,104.88,42.103448275862071,47]
["Jul",200,44.025818431911965,98.46,50,44.032258064516128,46,null,null,null,"Jul",44.025818431911965,98.46,44.032258064516128,46,null,"Maximum: for 1/2 hourly and daily periods use the highest value across all operational combustion lines for the month"]
["Aug",200,44.314313443565794,85.91,50,44.379310344827587,48,null,null,null,"Aug",44.314313443565794,85.91,44.379310344827587,48]
["Sep",200,38.48618350038555,81.53,50,38.296296296296298,46,null,null,null,"Sep",38.48618350038555,81.53,38.296296296296298,46]
["Oct",200,41.767577807848454,109.67,50,41.4,47,null,null,null,"Oct",41.767577807848454,109.67,41.4,47]
["Nov",200,43.107125205930828,104.24,50,43.07692307692308,48,null,null,null,"Nov",43.107125205930828,104.24,43.07692307692308,48]
["Dec",200,30.496608821402702,82.4,50,30.476206896551723,37.18,null,null,null,"Dec",30.496608821402702,82.4,30.476206896551723,37.18]
[null,null,null,null,"* ELV reduced to 40 mg/Nm3 on 3 December 2023",null,null,null,null,null,"Annual",{"$f":"AVERAGE(L7:L18)","v":40.393968622220136},{"$f":"MAX(M7:M18)","v":109.88},{"$f":"AVERAGE(N7:N18)","v":40.338004895549396},{"$f":"MAX(O7:O18)","v":48}]
[]
[null,null,null,null,null,null,null,null,null,{"$f":"+A6","v":2023},"mg/Nm3","Monthly 1/2 hourly mean","Monthly 1/2 hourly maximum","Monthly daily mean","Monthly daily maximum"]
[null,null,null,null,null,null,null,null,null,"A2","Jan"]
[null,null,null,null,null,null,null,null,null,null,"Feb"]
[null,null,null,null,null,null,null,null,null,null,"Mar"]
[null,null,null,null,null,null,null,null,null,null,"Apr"]
[null,null,null,null,null,null,null,null,null,null,"May"]
[null,null,null,null,null,null,null,null,null,null,"Jun"]
[null,null,null,null,null,null,null,null,null,null,"Jul"]
[null,null,null,null,null,null,null,null,null,null,"Aug"]
[null,null,null,null,null,null,null,null,null,null,"Sep"]
[null,null,null,null,null,null,null,null,null,null,"Oct"]
[null,null,null,null,null,null,null,null,null,null,"Nov"]
[null,null,null,null,null,null,null,null,null,null,"Dec"]
[null,null,null,null,null,null,null,null,null,null,"Annual",{"$f":"AVERAGE(L22:L33)","v":{"$error":"#DIV/0!"}},{"$f":"MAX(M22:M33)","v":0},{"$f":"AVERAGE(N22:N33)","v":{"$error":"#DIV/0!"}},{"$f":"MAX(O22:O33)","v":0}]
[]
[null,null,null,null,null,null,null,null,null,{"$f":"+A6","v":2023},"mg/Nm3","Monthly 1/2 hourly mean","Monthly 1/2 hourly maximum","Monthly daily mean","Monthly daily maximum"]
[null,null,null,null,null,null,null,null,null,"A3","Jan"]
[null,null,null,null,null,null,null,null,null,null,"Feb"]
[null,null,null,null,null,null,null,null,null,null,"Mar"]
[null,null,null,null,null,null,null,null,null,null,"Apr"]
[null,null,null,null,null,null,null,null,null,null,"May"]
[null,null,null,null,null,null,null,null,null,null,"Jun"]
[null,null,null,null,null,null,null,null,null,null,"Jul"]
[null,null,null,null,null,null,null,null,null,null,"Aug"]
[null,null,null,null,null,null,null,null,null,null,"Sep"]
[null,null,null,null,null,null,null,null,null,null,"Oct"]
[null,null,null,null,null,null,null,null,null,null,"Nov"]
["Comments :",null,null,null,null,null,null,null,null,null,"Dec"]
[null,null,null,null,null,null,null,null,null,null,"Annual",{"$f":"AVERAGE(L37:L48)","v":{"$error":"#DIV/0!"}},{"$f":"MAX(M37:M48)","v":0},{"$f":"AVERAGE(N37:N48)","v":{"$error":"#DIV/0!"}},{"$f":"MAX(O37:O48)","v":0}]
[]
[null,null,null,null,null,null,null,null,null,{"$f":"+A6","v":2023},"mg/Nm3","Monthly 1/2 hourly mean","Monthly 1/2 hourly maximum","Monthly daily mean","Monthly daily maximum"]
[null,null,null,null,null,null,null,null,null,"A4","Jan"]
[null,null,null,null,null,null,null,null,null,null,"Feb"]
[null,null,null,null,null,null,null,null,null,null,"Mar"]
[null,null,null,null,null,null,null,null,null,null,"Apr"]
[null,null,null,null,null,null,null,null,null,null,"May"]
[null,null,null,null,null,null,null,null,null,null,"Jun"]
[null,null,null,null,null,null,null,null,null,null,"Jul"]
[null,null,null,null,null,null,null,null,null,null,"Aug"]
[null,null,null,null,null,null,null,null,null,null,"Sep"]
[null,null,null,null,null,null,null,null,null,null,"Oct"]
[null,null,null,null,null,null,null,null,null,null,"Nov"]
[null,null,null,null,null,null,null,null,null,null,"Dec"]
[null,null,null,null,null,null,null,null,null,null,"Annual",{"$f":"AVERAGE(L52:L63)","v":{"$error":"#DIV/0!"}},{"$f":"MAX(M52:M63)","v":0},{"$f":"AVERAGE(N52:N63)","v":{"$error":"#DIV/0!"}},{"$f":"MAX(O52:O63)","v":0}]
[]
[null,null,null,null,null,null,null,null,null,{"$f":"+A6","v":2023},"mg/Nm3","Monthly 1/2 hourly mean","Monthly 1/2 hourly maximum","Monthly daily mean","Monthly daily maximum"]
[null,null,null,null,null,null,null,null,null,"A5","Jan"]
[null,null,null,null,null,null,null,null,null,null,"Feb"]
[null,null,null,null,null,null,null,null,null,null,"Mar"]
[null,null,null,null,null,null,null,null,null,null,"Apr"]
[null,null,null,null,null,null,null,null,null,null,"May"]
[null,null,null,null,null,null,null,null,null,null,"Jun"]
[null,null,null,null,null,null,null,null,null,null,"Jul"]
[null,null,null,null,null,null,null,null,null,null,"Aug"]
[null,null,null,null,null,null,null,null,null,null,"Sep"]
[null,null,null,null,null,null,null,null,null,null,"Oct"]
[null,null,null,null,null,null,null,null,null,null,"Nov"]
[null,null,null,null,null,null,null,null,null,null,"Dec"]
[null,null,null,null,null,null,null,null,null,null,"Annual",{"$f":"AVERAGE(L67:L78)","v":{"$error":"#DIV/0!"}},{"$f":"MAX(M67:M78)","v":0},{"$f":"AVERAGE(N67:N78)","v":{"$error":"#DIV/0!"}},{"$f":"MAX(O67:O78)","v":0}]

{"sheet":"NOx","index":17,"n_rows":79,"n_cols":17,"rows_kept":79,"cut":false,"hidden":false,"merged":[[3,16,7,18],[9,16,11,18],[12,16,15,18],[66,9,78,9],[4,1,4,3],[4,4,4,6],[4,9,4,14],[6,9,18,9],[21,9,33,9],[36,9,48,9],[47,0,47,6],[48,0,51,6],[51,9,63,9],[18,4,18,6]]}
[{"$f":"+'Cover Page'!$B$29","v":"Annual Performance Report 2023"},null,null,null,{"$f":"+'Cover Page'!$B$33","v":"Slough Heat and Power Station"}]
[]
["Monitoring of Oxides of Nitrogen emissions",null,null,"Whole Installation",null,null,"See  Notes in Cell Q3",null,null,{"$f":"+A3","v":"Monitoring of Oxides of Nitrogen emissions"},null,null,null,"Per Combustion Line",null,null,"Notes:"]
[null,null,null,null,null,null,null,null,null,null,null,null,null,null,null,null,"User to add logic to complete Whole installation, Table A5:G18. From the data in Per Combustion Line, Table J6:O79, subject to No. of lines installed"]
["mg/Nm3","1/2 Hourly Reference Periods",null,null,"Daily Reference Periods"]
[{"$f":"+'Cover Page'!C39","v":2023},"1/2 hourly NOx ELV","Monthly 1/2 hourly mean","Highest 1/2 hourly maximum","Daily NOx ELV*","Monthly daily mean","Highest daily maximum",null,null,{"$f":"+A6","v":2023},"mg/Nm3","Monthly 1/2 hourly mean","Monthly 1/2 hourly maximum","Monthly daily mean","Monthly daily maximum"]
["Jan",400,191.15275162337656,217.39,200,191.15384615384616,197,null,null,"A1","Jan",191.15275162337656,217.39,191.15384615384616,197]
["Feb",400,188.60245325355288,214.8,200,187.75,196,null,null,null,"Feb",188.60245325355288,214.8,187.75,196]
["Mar",400,186.68800947867297,215.62,200,186.62962962962962,196,null,null,null,"Mar",186.68800947867297,215.62,186.62962962962962,196,null,"Whole Installation table A5:G18:"]
["Apr",400,185.49419700214131,214.83,200,185.6,192,null,null,null,"Apr",185.49419700214131,214.83,185.6,192,null,"Mean: for 1/2 hourly and daily periods calculate mean of values across all operational combustion lines for the month"]
["May",400,150.15718899521525,175.31,200,150.22222222222223,160,null,null,null,"May",150.15718899521525,175.31,150.22222222222223,160]
["Jun",400,137.2126193820225,194,200,138,169,null,null,null,"Jun",137.2126193820225,194,138,169]
["Jul",400,133.21225584594234,194.56,200,132.90322580645162,174,null,null,null,"Jul",133.21225584594234,194.56,132.90322580645162,174,null,"Maximum: for 1/2 hourly and daily periods use the highest value across all operational combustion lines for the month"]
["Aug",400,118.24800143781454,181.69,200,118.31034482758621,126,null,null,null,"Aug",118.24800143781454,181.69,118.31034482758621,126]
["Sep",400,115.74984579799529,199.68,200,115.70370370370371,149,null,null,null,"Sep",115.74984579799529,199.68,115.70370370370371,149]
["Oct",400,174.62803788903946,220.53,200,174.4,194,null,null,null,"Oct",174.62803788903946,220.53,174.4,194]
["Nov",400,183.88459637561775,214.95,200,183.76923076923077,193,null,null,null,"Nov",183.88459637561775,214.95,183.76923076923077,193]
["Dec",400,170.56122921185818,225.75,200,170.44827586206895,179,null,null,null,"Dec",170.56122921185818,225.75,170.44827586206895,179]
[null,null,null,null,"* ELV reduced to 180 mg/Nm3 on 3 December 2023",null,null,null,null,null,"Annual",{"$f":"AVERAGE(L7:L18)","v":161.2992655244374},{"$f":"MAX(M7:M18)","v":225.75},{"$f":"AVERAGE(N7:N18)","v":161.24087324789494},{"$f":"MAX(O7:O18)","v":197}]
[]
[null,null,null,null,null,null,null,null,null,{"$f":"+A6","v":2023},"mg/Nm3","Monthly 1/2 hourly mean","Monthly 1/2 hourly maximum","Monthly daily mean","Monthly daily maximum"]
[null,null,null,null,null,null,null,null,null,"A2","Jan"]
[null,null,null,null,null,null,null,null,null,null,"Feb"]
[null,null,null,null,null,null,null,null,null,null,"Mar"]
[null,null,null,null,null,null,null,null,null,null,"Apr"]
[null,null,null,null,null,null,null,null,null,null,"May"]
[null,null,null,null,null,null,null,null,null,null,"Jun"]
[null,null,null,null,null,null,null,null,null,null,"Jul"]
[null,null,null,null,null,null,null,null,null,null,"Aug"]
[null,null,null,null,null,null,null,null,null,null,"Sep"]
[null,null,null,null,null,null,null,null,null,null,"Oct"]
[null,null,null,null,null,null,null,null,null,null,"Nov"]
[null,null,null,null,null,null,null,null,null,null,"Dec"]
[null,null,null,null,null,null,null,null,null,null,"Annual",{"$f":"AVERAGE(L22:L33)","v":{"$error":"#DIV/0!"}},{"$f":"MAX(M22:M33)","v":0},{"$f":"AVERAGE(N22:N33)","v":{"$error":"#DIV/0!"}},{"$f":"MAX(O22:O33)","v":0}]
[]
[null,null,null,null,null,null,null,null,null,{"$f":"+A6","v":2023},"mg/Nm3","Monthly 1/2 hourly mean","Monthly 1/2 hourly maximum","Monthly daily mean","Monthly daily maximum"]
[null,null,null,null,null,null,null,null,null,"A3","Jan"]
[null,null,null,null,null,null,null,null,null,null,"Feb"]
[null,null,null,null,null,null,null,null,null,null,"Mar"]
[null,null,null,null,null,null,null,null,null,null,"Apr"]
[null,null,null,null,null,null,null,null,null,null,"May"]
[null,null,null,null,null,null,null,null,null,null,"Jun"]
[null,null,null,null,null,null,null,null,null,null,"Jul"]
[null,null,null,null,null,null,null,null,null,null,"Aug"]
[null,null,null,null,null,null,null,null,null,null,"Sep"]
[null,null,null,null,null,null,null,null,null,null,"Oct"]
[null,null,null,null,null,null,null,null,null,null,"Nov"]
["Comments :",null,null,null,null,null,null,null,null,null,"Dec"]
[null,null,null,null,null,null,null,null,null,null,"Annual",{"$f":"AVERAGE(L37:L48)","v":{"$error":"#DIV/0!"}},{"$f":"MAX(M37:M48)","v":0},{"$f":"AVERAGE(N37:N48)","v":{"$error":"#DIV/0!"}},{"$f":"MAX(O37:O48)","v":0}]
[]
[null,null,null,null,null,null,null,null,null,{"$f":"+A6","v":2023},"mg/Nm3","Monthly 1/2 hourly mean","Monthly 1/2 hourly maximum","Monthly daily mean","Monthly daily maximum"]
[null,null,null,null,null,null,null,null,null,"A4","Jan"]
[null,null,null,null,null,null,null,null,null,null,"Feb"]
[null,null,null,null,null,null,null,null,null,null,"Mar"]
[null,null,null,null,null,null,null,null,null,null,"Apr"]
[null,null,null,null,null,null,null,null,null,null,"May"]
[null,null,null,null,null,null,null,null,null,null,"Jun"]
[null,null,null,null,null,null,null,null,null,null,"Jul"]
[null,null,null,null,null,null,null,null,null,null,"Aug"]
[null,null,null,null,null,null,null,null,null,null,"Sep"]
[null,null,null,null,null,null,null,null,null,null,"Oct"]
[null,null,null,null,null,null,null,null,null,null,"Nov"]
[null,null,null,null,null,null,null,null,null,null,"Dec"]
[null,null,null,null,null,null,null,null,null,null,"Annual",{"$f":"AVERAGE(L52:L63)","v":{"$error":"#DIV/0!"}},{"$f":"MAX(M52:M63)","v":0},{"$f":"AVERAGE(N52:N63)","v":{"$error":"#DIV/0!"}},{"$f":"MAX(O52:O63)","v":0}]
[]
[null,null,null,null,null,null,null,null,null,{"$f":"+A6","v":2023},"mg/Nm3","Monthly 1/2 hourly mean","Monthly 1/2 hourly maximum","Monthly daily mean","Monthly daily maximum"]
[null,null,null,null,null,null,null,null,null,"A5","Jan"]
[null,null,null,null,null,null,null,null,null,null,"Feb"]
[null,null,null,null,null,null,null,null,null,null,"Mar"]
[null,null,null,null,null,null,null,null,null,null,"Apr"]
[null,null,null,null,null,null,null,null,null,null,"May"]
[null,null,null,null,null,null,null,null,null,null,"Jun"]
[null,null,null,null,null,null,null,null,null,null,"Jul"]
[null,null,null,null,null,null,null,null,null,null,"Aug"]
[null,null,null,null,null,null,null,null,null,null,"Sep"]
[null,null,null,null,null,null,null,null,null,null,"Oct"]
[null,null,null,null,null,null,null,null,null,null,"Nov"]
[null,null,null,null,null,null,null,null,null,null,"Dec"]
[null,null,null,null,null,null,null,null,null,null,"Annual",{"$f":"AVERAGE(L67:L78)","v":{"$error":"#DIV/0!"}},{"$f":"MAX(M67:M78)","v":0},{"$f":"AVERAGE(N67:N78)","v":{"$error":"#DIV/0!"}},{"$f":"MAX(O67:O78)","v":0}]

{"sheet":"TOC","index":18,"n_rows":79,"n_cols":17,"rows_kept":79,"cut":false,"hidden":false,"merged":[[3,16,7,18],[9,16,11,18],[12,16,15,18],[66,9,78,9],[4,1,4,3],[4,4,4,6],[4,9,4,14],[6,9,18,9],[21,9,33,9],[36,9,48,9],[47,0,47,6],[48,0,51,6],[51,9,63,9]]}
[{"$f":"+'Cover Page'!$B$29","v":"Annual Performance Report 2023"},null,null,null,{"$f":"+'Cover Page'!$B$33","v":"Slough Heat and Power Station"}]
[]
["Monitoring of Total organic carbon emissions",null,null,"Whole Installation",null,null,"See  Notes in Cell Q3",null,null,{"$f":"+A3","v":"Monitoring of Total organic carbon emissions"},null,null,null,"Per Combustion Line",null,null,"Notes:"]
[null,null,null,null,null,null,null,null,null,null,null,null,null,null,null,null,"User to add logic to complete Whole installation, Table A5:G18. From the data in Per Combustion Line, Table J6:O79, subject to No. of lines installed"]
["mg/Nm3","1/2 Hourly Reference Periods",null,null,"Daily Reference Periods"]
[{"$f":"+'Cover Page'!C39","v":2023},"1/2 hourly TOC ELV","Monthly 1/2 hourly mean","Highest 1/2 hourly maximum","Daily TOC ELV","Monthly daily mean","Highest daily maximum",null,null,{"$f":"+A6","v":2023},"mg/Nm3","Monthly 1/2 hourly mean","Monthly 1/2 hourly maximum","Monthly daily mean","Monthly daily maximum"]
["Jan",20,0.71703733766233646,5.22,10,0.71769230769230752,1.43,null,null,"A1","Jan",0.71703733766233646,5.22,0.71769230769230752,1.43]
["Feb",20,0.54994764397905849,2.69,10,0.55607142857142866,0.87,null,null,null,"Feb",0.54994764397905849,2.69,0.55607142857142866,0.87]
["Mar",20,0.78857819905213322,3.79,10,0.78925925925925944,1.06,null,null,null,"Mar",0.78857819905213322,3.79,0.78925925925925944,1.06,null,"Whole Installation table A5:G18:"]
["Apr",20,0.44520342612419722,3.67,10,0.442,0.75,null,null,null,"Apr",0.44520342612419722,3.67,0.442,0.75,null,"Mean: for 1/2 hourly and daily periods calculate mean of values across all operational combustion lines for the month"]
["May",20,0.56106459330143632,5.0199999999999996,10,0.56166666666666665,0.79,null,null,null,"May",0.56106459330143632,5.0199999999999996,0.56166666666666665,0.79]
["Jun",20,0.53695926966292251,2.2999999999999998,10,0.53733333333333344,0.79,null,null,null,"Jun",0.53695926966292251,2.2999999999999998,0.53733333333333344,0.79]
["Jul",20,0.56687757909215908,2.27,10,0.56999999999999995,0.77,null,null,null,"Jul",0.56687757909215908,2.27,0.56999999999999995,0.77,null,"Maximum: for 1/2 hourly and daily periods use the highest value across all operational combustion lines for the month"]
["Aug",20,0.56248023005032188,1.31,10,0.56137931034482746,0.62,null,null,null,"Aug",0.56248023005032188,1.31,0.56137931034482746,0.62]
["Sep",20,0.45042471042471072,2.75,10,0.49637037037037035,0.67,null,null,null,"Sep",0.45042471042471072,2.75,0.49637037037037035,0.67]
["Oct",20,0.44091339648173228,3.04,10,0.4423333333333333,0.71,null,null,null,"Oct",0.44091339648173228,3.04,0.4423333333333333,0.71]
["Nov",20,0.26007413509061006,2.44,10,0.31846153846153846,0.68,null,null,null,"Nov",0.26007413509061006,2.44,0.31846153846153846,0.68]
["Dec",20,0.67575560375994281,2.4700000000000002,10,0.68185185185185171,1.02,null,null,null,"Dec",0.67575560375994281,2.4700000000000002,0.68185185185185171,1.02]
[null,null,null,null,null,null,null,null,null,null,"Annual",{"$f":"AVERAGE(L7:L18)","v":0.54627634372346345},{"$f":"MAX(M7:M18)","v":5.22},{"$f":"AVERAGE(N7:N18)","v":0.55620161665707657},{"$f":"MAX(O7:O18)","v":1.43}]
[]
[null,null,null,null,null,null,null,null,null,{"$f":"+A6","v":2023},"mg/Nm3","Monthly 1/2 hourly mean","Monthly 1/2 hourly maximum","Monthly daily mean","Monthly daily maximum"]
[null,null,null,null,null,null,null,null,null,"A2","Jan"]
[null,null,null,null,null,null,null,null,null,null,"Feb"]
[null,null,null,null,null,null,null,null,null,null,"Mar"]
[null,null,null,null,null,null,null,null,null,null,"Apr"]
[null,null,null,null,null,null,null,null,null,null,"May"]
[null,null,null,null,null,null,null,null,null,null,"Jun"]
[null,null,null,null,null,null,null,null,null,null,"Jul"]
[null,null,null,null,null,null,null,null,null,null,"Aug"]
[null,null,null,null,null,null,null,null,null,null,"Sep"]
[null,null,null,null,null,null,null,null,null,null,"Oct"]
[null,null,null,null,null,null,null,null,null,null,"Nov"]
[null,null,null,null,null,null,null,null,null,null,"Dec"]
[null,null,null,null,null,null,null,null,null,null,"Annual",{"$f":"AVERAGE(L22:L33)","v":{"$error":"#DIV/0!"}},{"$f":"MAX(M22:M33)","v":0},{"$f":"AVERAGE(N22:N33)","v":{"$error":"#DIV/0!"}},{"$f":"MAX(O22:O33)","v":0}]
[]
[null,null,null,null,null,null,null,null,null,{"$f":"+A6","v":2023},"mg/Nm3","Monthly 1/2 hourly mean","Monthly 1/2 hourly maximum","Monthly daily mean","Monthly daily maximum"]
[null,null,null,null,null,null,null,null,null,"A3","Jan"]
[null,null,null,null,null,null,null,null,null,null,"Feb"]
[null,null,null,null,null,null,null,null,null,null,"Mar"]
[null,null,null,null,null,null,null,null,null,null,"Apr"]
[null,null,null,null,null,null,null,null,null,null,"May"]
[null,null,null,null,null,null,null,null,null,null,"Jun"]
[null,null,null,null,null,null,null,null,null,null,"Jul"]
[null,null,null,null,null,null,null,null,null,null,"Aug"]
[null,null,null,null,null,null,null,null,null,null,"Sep"]
[null,null,null,null,null,null,null,null,null,null,"Oct"]
[null,null,null,null,null,null,null,null,null,null,"Nov"]
["Comments :",null,null,null,null,null,null,null,null,null,"Dec"]
[null,null,null,null,null,null,null,null,null,null,"Annual",{"$f":"AVERAGE(L37:L48)","v":{"$error":"#DIV/0!"}},{"$f":"MAX(M37:M48)","v":0},{"$f":"AVERAGE(N37:N48)","v":{"$error":"#DIV/0!"}},{"$f":"MAX(O37:O48)","v":0}]
[]
[null,null,null,null,null,null,null,null,null,{"$f":"+A6","v":2023},"mg/Nm3","Monthly 1/2 hourly mean","Monthly 1/2 hourly maximum","Monthly daily mean","Monthly daily maximum"]
[null,null,null,null,null,null,null,null,null,"A4","Jan"]
[null,null,null,null,null,null,null,null,null,null,"Feb"]
[null,null,null,null,null,null,null,null,null,null,"Mar"]
[null,null,null,null,null,null,null,null,null,null,"Apr"]
[null,null,null,null,null,null,null,null,null,null,"May"]
[null,null,null,null,null,null,null,null,null,null,"Jun"]
[null,null,null,null,null,null,null,null,null,null,"Jul"]
[null,null,null,null,null,null,null,null,null,null,"Aug"]
[null,null,null,null,null,null,null,null,null,null,"Sep"]
[null,null,null,null,null,null,null,null,null,null,"Oct"]
[null,null,null,null,null,null,null,null,null,null,"Nov"]
[null,null,null,null,null,null,null,null,null,null,"Dec"]
[null,null,null,null,null,null,null,null,null,null,"Annual",{"$f":"AVERAGE(L52:L63)","v":{"$error":"#DIV/0!"}},{"$f":"MAX(M52:M63)","v":0},{"$f":"AVERAGE(N52:N63)","v":{"$error":"#DIV/0!"}},{"$f":"MAX(O52:O63)","v":0}]
[]
[null,null,null,null,null,null,null,null,null,{"$f":"+A6","v":2023},"mg/Nm3","Monthly 1/2 hourly mean","Monthly 1/2 hourly maximum","Monthly daily mean","Monthly daily maximum"]
[null,null,null,null,null,null,null,null,null,"A5","Jan"]
[null,null,null,null,null,null,null,null,null,null,"Feb"]
[null,null,null,null,null,null,null,null,null,null,"Mar"]
[null,null,null,null,null,null,null,null,null,null,"Apr"]
[null,null,null,null,null,null,null,null,null,null,"May"]
[null,null,null,null,null,null,null,null,null,null,"Jun"]
[null,null,null,null,null,null,null,null,null,null,"Jul"]
[null,null,null,null,null,null,null,null,null,null,"Aug"]
[null,null,null,null,null,null,null,null,null,null,"Sep"]
[null,null,null,null,null,null,null,null,null,null,"Oct"]
[null,null,null,null,null,null,null,null,null,null,"Nov"]
[null,null,null,null,null,null,null,null,null,null,"Dec"]
[null,null,null,null,null,null,null,null,null,null,"Annual",{"$f":"AVERAGE(L67:L78)","v":{"$error":"#DIV/0!"}},{"$f":"MAX(M67:M78)","v":0},{"$f":"AVERAGE(N67:N78)","v":{"$error":"#DIV/0!"}},{"$f":"MAX(O67:O78)","v":0}]

{"sheet":"Particulates","index":19,"n_rows":79,"n_cols":17,"rows_kept":79,"cut":false,"hidden":false,"merged":[[3,16,7,18],[9,16,11,18],[12,16,15,18],[66,9,78,9],[4,1,4,3],[4,4,4,6],[4,9,4,14],[6,9,18,9],[21,9,33,9],[36,9,48,9],[47,0,47,6],[48,0,51,6],[51,9,63,9],[18,4,18,6]]}
[{"$f":"+'Cover Page'!$B$29","v":"Annual Performance Report 2023"},null,null,null,{"$f":"+'Cover Page'!$B$33","v":"Slough Heat and Power Station"}]
[]
["Monitoring of Particulate matter emissions",null,null,"Whole Installation",null,null,"See  Notes in Cell Q3",null,null,{"$f":"+A3","v":"Monitoring of Particulate matter emissions"},null,null,null,"Per Combustion Line",null,null,"Notes:"]
[null,null,null,null,null,null,null,null,null,null,null,null,null,null,null,null,"User to add logic to complete Whole installation, Table A5:G18. From the data in Per Combustion Line, Table J6:O79, subject to No. of lines installed"]
["mg/Nm3","1/2 Hourly Reference Periods",null,null,"Daily Reference Periods"]
[{"$f":"+'Cover Page'!C39","v":2023},"1/2 hourly PM ELV","Monthly 1/2 hourly mean","Highest 1/2 hourly maximum","Daily PM ELV*","Monthly daily mean","Highest daily maximum",null,null,{"$f":"+A6","v":2023},"mg/Nm3","Monthly 1/2 hourly mean","Monthly 1/2 hourly maximum","Monthly daily mean","Monthly daily maximum"]
["Jan",30,3.6155519480519476,6.95,10,3.6080769230769225,5.09,null,null,"A1","Jan",3.6155519480519476,6.95,3.6080769230769225,5.09]
["Feb",30,3.9943605086013423,7.81,10,3.9932142857142865,5.55,null,null,null,"Feb",3.9943605086013423,7.81,3.9932142857142865,5.55]
["Mar",30,3.4061453396524497,11.86,10,3.3948148148148154,4.8,null,null,null,"Mar",3.4061453396524497,11.86,3.3948148148148154,4.8,null,"Whole Installation table A5:G18:"]
["Apr",30,3.9248712446351885,5.2,10,3.9390000000000001,4.4000000000000004,null,null,null,"Apr",3.9248712446351885,5.2,3.9390000000000001,4.4000000000000004,null,"Mean: for 1/2 hourly and daily periods calculate mean of values across all operational combustion lines for the month"]
["May",30,1.8366985645933023,2.56,10,1.8438888888888887,2.1800000000000002,null,null,null,"May",1.8366985645933023,2.56,1.8438888888888887,2.1800000000000002]
["Jun",30,2.1095084269662898,4.0199999999999996,10,2.1086666666666667,2.36,null,null,null,"Jun",2.1095084269662898,4.0199999999999996,2.1086666666666667,2.36]
["Jul",30,1.2150412654745546,3.87,10,1.2090322580645161,2.96,null,null,null,"Jul",1.2150412654745546,3.87,1.2090322580645161,2.96,null,"Maximum: for 1/2 hourly and daily periods use the highest value across all operational combustion lines for the month"]
["Aug",30,1.1226240115025119,1.78,10,1.123448275862069,1.33,null,null,null,"Aug",1.1226240115025119,1.78,1.123448275862069,1.33]
["Sep",30,1.3235774865073242,2.04,10,1.3237037037037036,1.87,null,null,null,"Sep",1.3235774865073242,2.04,1.3237037037037036,1.87]
["Oct",30,2.3990595399188095,6.05,10,2.3883333333333336,4.03,null,null,null,"Oct",2.3990595399188095,6.05,2.3883333333333336,4.03]
["Nov",30,4.1062602965403547,6.81,10,4.1238461538461539,5.49,null,null,null,"Nov",4.1062602965403547,6.81,4.1238461538461539,5.49]
["Dec",30,2.8332827187274012,7.29,10,2.782592592592593,4.51,null,null,null,"Dec",2.8332827187274012,7.29,2.782592592592593,4.51]
[null,null,null,null,"* ELV reduced to 5 mg/Nm3 on 3 December 2023",null,null,null,null,null,"Annual",{"$f":"AVERAGE(L7:L18)","v":2.6572484459309567},{"$f":"MAX(M7:M18)","v":11.86},{"$f":"AVERAGE(N7:N18)","v":2.6532181580469953},{"$f":"MAX(O7:O18)","v":5.55}]
[]
[null,null,null,null,null,null,null,null,null,{"$f":"+A6","v":2023},"mg/Nm3","Monthly 1/2 hourly mean","Monthly 1/2 hourly maximum","Monthly daily mean","Monthly daily maximum"]
[null,null,null,null,null,null,null,null,null,"A2","Jan"]
[null,null,null,null,null,null,null,null,null,null,"Feb"]
[null,null,null,null,null,null,null,null,null,null,"Mar"]
[null,null,null,null,null,null,null,null,null,null,"Apr"]
[null,null,null,null,null,null,null,null,null,null,"May"]
[null,null,null,null,null,null,null,null,null,null,"Jun"]
[null,null,null,null,null,null,null,null,null,null,"Jul"]
[null,null,null,null,null,null,null,null,null,null,"Aug"]
[null,null,null,null,null,null,null,null,null,null,"Sep"]
[null,null,null,null,null,null,null,null,null,null,"Oct"]
[null,null,null,null,null,null,null,null,null,null,"Nov"]
[null,null,null,null,null,null,null,null,null,null,"Dec"]
[null,null,null,null,null,null,null,null,null,null,"Annual",{"$f":"AVERAGE(L22:L33)","v":{"$error":"#DIV/0!"}},{"$f":"MAX(M22:M33)","v":0},{"$f":"AVERAGE(N22:N33)","v":{"$error":"#DIV/0!"}},{"$f":"MAX(O22:O33)","v":0}]
[]
[null,null,null,null,null,null,null,null,null,{"$f":"+A6","v":2023},"mg/Nm3","Monthly 1/2 hourly mean","Monthly 1/2 hourly maximum","Monthly daily mean","Monthly daily maximum"]
[null,null,null,null,null,null,null,null,null,"A3","Jan"]
[null,null,null,null,null,null,null,null,null,null,"Feb"]
[null,null,null,null,null,null,null,null,null,null,"Mar"]
[null,null,null,null,null,null,null,null,null,null,"Apr"]
[null,null,null,null,null,null,null,null,null,null,"May"]
[null,null,null,null,null,null,null,null,null,null,"Jun"]
[null,null,null,null,null,null,null,null,null,null,"Jul"]
[null,null,null,null,null,null,null,null,null,null,"Aug"]
[null,null,null,null,null,null,null,null,null,null,"Sep"]
[null,null,null,null,null,null,null,null,null,null,"Oct"]
[null,null,null,null,null,null,null,null,null,null,"Nov"]
["Comments :",null,null,null,null,null,null,null,null,null,"Dec"]
[null,null,null,null,null,null,null,null,null,null,"Annual",{"$f":"AVERAGE(L37:L48)","v":{"$error":"#DIV/0!"}},{"$f":"MAX(M37:M48)","v":0},{"$f":"AVERAGE(N37:N48)","v":{"$error":"#DIV/0!"}},{"$f":"MAX(O37:O48)","v":0}]
[]
[null,null,null,null,null,null,null,null,null,{"$f":"+A6","v":2023},"mg/Nm3","Monthly 1/2 hourly mean","Monthly 1/2 hourly maximum","Monthly daily mean","Monthly daily maximum"]
[null,null,null,null,null,null,null,null,null,"A4","Jan"]
[null,null,null,null,null,null,null,null,null,null,"Feb"]
[null,null,null,null,null,null,null,null,null,null,"Mar"]
[null,null,null,null,null,null,null,null,null,null,"Apr"]
[null,null,null,null,null,null,null,null,null,null,"May"]
[null,null,null,null,null,null,null,null,null,null,"Jun"]
[null,null,null,null,null,null,null,null,null,null,"Jul"]
[null,null,null,null,null,null,null,null,null,null,"Aug"]
[null,null,null,null,null,null,null,null,null,null,"Sep"]
[null,null,null,null,null,null,null,null,null,null,"Oct"]
[null,null,null,null,null,null,null,null,null,null,"Nov"]
[null,null,null,null,null,null,null,null,null,null,"Dec"]
[null,null,null,null,null,null,null,null,null,null,"Annual",{"$f":"AVERAGE(L52:L63)","v":{"$error":"#DIV/0!"}},{"$f":"MAX(M52:M63)","v":0},{"$f":"AVERAGE(N52:N63)","v":{"$error":"#DIV/0!"}},{"$f":"MAX(O52:O63)","v":0}]
[]
[null,null,null,null,null,null,null,null,null,{"$f":"+A6","v":2023},"mg/Nm3","Monthly 1/2 hourly mean","Monthly 1/2 hourly maximum","Monthly daily mean","Monthly daily maximum"]
[null,null,null,null,null,null,null,null,null,"A5","Jan"]
[null,null,null,null,null,null,null,null,null,null,"Feb"]
[null,null,null,null,null,null,null,null,null,null,"Mar"]
[null,null,null,null,null,null,null,null,null,null,"Apr"]
[null,null,null,null,null,null,null,null,null,null,"May"]
[null,null,null,null,null,null,null,null,null,null,"Jun"]
[null,null,null,null,null,null,null,null,null,null,"Jul"]
[null,null,null,null,null,null,null,null,null,null,"Aug"]
[null,null,null,null,null,null,null,null,null,null,"Sep"]
[null,null,null,null,null,null,null,null,null,null,"Oct"]
[null,null,null,null,null,null,null,null,null,null,"Nov"]
[null,null,null,null,null,null,null,null,null,null,"Dec"]
[null,null,null,null,null,null,null,null,null,null,"Annual",{"$f":"AVERAGE(L67:L78)","v":{"$error":"#DIV/0!"}},{"$f":"MAX(M67:M78)","v":0},{"$f":"AVERAGE(N67:N78)","v":{"$error":"#DIV/0!"}},{"$f":"MAX(O67:O78)","v":0}]

{"sheet":"CO 0.5 hourly","index":20,"n_rows":82,"n_cols":17,"rows_kept":82,"cut":false,"hidden":false,"merged":[[4,0,5,6],[6,16,10,18],[12,16,14,18],[15,16,18,18],[69,9,81,9],[7,1,7,3],[7,4,7,6],[7,9,7,14],[9,9,21,9],[24,9,36,9],[39,9,51,9],[50,0,50,6],[51,0,54,6],[54,9,66,9]]}
[{"$f":"+'Cover Page'!$B$29","v":"Annual Performance Report 2023"},null,null,null,{"$f":"+'Cover Page'!$B$33","v":"Slough Heat and Power Station"}]
[]
["Monitoring of Carbon Monoxide (half hourly)",null,null,"Whole Installation",null,null,"See  Notes in Cell Q3",null,null,{"$f":"+A3","v":"Monitoring of Carbon Monoxide (half hourly)"},null,null,null,"Per Combustion Line",null,null,"Notes:"]
[]
["Please complete this tab for your plant if you have 1/2 hourly CO ELVs; otherwise, leave it blank and complete the CO 95% 10 min tab"]
[]
[null,null,null,null,null,null,null,null,null,null,null,null,null,null,null,null,"User to add logic to complete Whole installation, Table A5:G18. From the data in Per Combustion Line, Table J6:O79, subject to No. of lines installed"]
["mg/Nm3","1/2 Hourly Reference Periods",null,null,"Daily Reference Periods"]
[{"$f":"+'Cover Page'!C39","v":2023},"1/2 hourly CO ELV","Monthly 1/2 hourly mean","Highest 1/2 hourly maximum","Daily CO ELV","Monthly daily mean","Highest daily maximum",null,null,{"$f":"+A9","v":2023},"mg/Nm3","Monthly 1/2 hourly mean","Monthly 1/2 hourly maximum","Monthly daily mean","Monthly daily maximum"]
["Jan",100,"N/A","N/A",50,"N/A","N/A",null,null,"A1","Jan","N/A","N/A","N/A","N/A"]
["Feb",{"$f":"+B10","v":100},"N/A","N/A",{"$f":"+E10","v":50},"N/A","N/A",null,null,null,"Feb","N/A","N/A","N/A","N/A"]
["Mar",{"$f":"+B11","v":100},"N/A","N/A",{"$f":"+E11","v":50},"N/A","N/A",null,null,null,"Mar","N/A","N/A","N/A","N/A",null,"Whole Installation table A5:G18:"]
["Apr",100,"N/A","N/A",50,"N/A","N/A",null,null,null,"Apr","N/A","N/A","N/A","N/A",null,"Mean: for 1/2 hourly and daily periods calculate mean of values across all operational combustion lines for the month"]
["May",100,"N/A","N/A",50,"N/A","N/A",null,null,null,"May","N/A","N/A","N/A","N/A"]
["Jun",100,"N/A","N/A",50,"N/A","N/A",null,null,null,"Jun","N/A","N/A","N/A","N/A"]
["Jul",100,"N/A","N/A",50,"N/A","N/A",null,null,null,"Jul","N/A","N/A","N/A","N/A",null,"Maximum: for 1/2 hourly and daily periods use the highest value across all operational combustion lines for the month"]
["Aug",100,"N/A","N/A",50,"N/A","N/A",null,null,null,"Aug","N/A","N/A","N/A","N/A"]
["Sep",100,"N/A","N/A",50,"N/A","N/A",null,null,null,"Sep","N/A","N/A","N/A","N/A"]
["Oct",100,"N/A","N/A",50,"N/A","N/A",null,null,null,"Oct","N/A","N/A","N/A","N/A"]
["Nov",100,"N/A","N/A",50,"N/A","N/A",null,null,null,"Nov","N/A","N/A","N/A","N/A"]
["Dec",100,"N/A","N/A",50,"N/A","N/A",null,null,null,"Dec","N/A","N/A","N/A","N/A"]
[null,null,null,null,null,null,null,null,null,null,"Annual",{"$f":"AVERAGE(L10:L21)","v":{"$error":"#DIV/0!"}},{"$f":"MAX(M10:M21)","v":0},{"$f":"AVERAGE(N10:N21)","v":{"$error":"#DIV/0!"}},{"$f":"MAX(O10:O21)","v":0}]
[]
[null,null,null,null,null,null,null,null,null,{"$f":"+A9","v":2023},"mg/Nm3","Monthly 1/2 hourly mean","Monthly 1/2 hourly maximum","Monthly daily mean","Monthly daily maximum"]
[null,null,null,null,null,null,null,null,null,"A2","Jan"]
[null,null,null,null,null,null,null,null,null,null,"Feb"]
[null,null,null,null,null,null,null,null,null,null,"Mar"]
[null,null,null,null,null,null,null,null,null,null,"Apr"]
[null,null,null,null,null,null,null,null,null,null,"May"]
[null,null,null,null,null,null,null,null,null,null,"Jun"]
[null,null,null,null,null,null,null,null,null,null,"Jul"]
[null,null,null,null,null,null,null,null,null,null,"Aug"]
[null,null,null,null,null,null,null,null,null,null,"Sep"]
[null,null,null,null,null,null,null,null,null,null,"Oct"]
[null,null,null,null,null,null,null,null,null,null,"Nov"]
[null,null,null,null,null,null,null,null,null,null,"Dec"]
[null,null,null,null,null,null,null,null,null,null,"Annual",{"$f":"AVERAGE(L25:L36)","v":{"$error":"#DIV/0!"}},{"$f":"MAX(M25:M36)","v":0},{"$f":"AVERAGE(N25:N36)","v":{"$error":"#DIV/0!"}},{"$f":"MAX(O25:O36)","v":0}]
[]
[null,null,null,null,null,null,null,null,null,{"$f":"+A9","v":2023},"mg/Nm3","Monthly 1/2 hourly mean","Monthly 1/2 hourly maximum","Monthly daily mean","Monthly daily maximum"]
[null,null,null,null,null,null,null,null,null,"A3","Jan"]
[null,null,null,null,null,null,null,null,null,null,"Feb"]
[null,null,null,null,null,null,null,null,null,null,"Mar"]
[null,null,null,null,null,null,null,null,null,null,"Apr"]
[null,null,null,null,null,null,null,null,null,null,"May"]
[null,null,null,null,null,null,null,null,null,null,"Jun"]
[null,null,null,null,null,null,null,null,null,null,"Jul"]
[null,null,null,null,null,null,null,null,null,null,"Aug"]
[null,null,null,null,null,null,null,null,null,null,"Sep"]
[null,null,null,null,null,null,null,null,null,null,"Oct"]
[null,null,null,null,null,null,null,null,null,null,"Nov"]
["Comments :",null,null,null,null,null,null,null,null,null,"Dec"]
[null,null,null,null,null,null,null,null,null,null,"Annual",{"$f":"AVERAGE(L40:L51)","v":{"$error":"#DIV/0!"}},{"$f":"MAX(M40:M51)","v":0},{"$f":"AVERAGE(N40:N51)","v":{"$error":"#DIV/0!"}},{"$f":"MAX(O40:O51)","v":0}]
[]
[null,null,null,null,null,null,null,null,null,{"$f":"+A9","v":2023},"mg/Nm3","Monthly 1/2 hourly mean","Monthly 1/2 hourly maximum","Monthly daily mean","Monthly daily maximum"]
[null,null,null,null,null,null,null,null,null,"A4","Jan"]
[null,null,null,null,null,null,null,null,null,null,"Feb"]
[null,null,null,null,null,null,null,null,null,null,"Mar"]
[null,null,null,null,null,null,null,null,null,null,"Apr"]
[null,null,null,null,null,null,null,null,null,null,"May"]
[null,null,null,null,null,null,null,null,null,null,"Jun"]
[null,null,null,null,null,null,null,null,null,null,"Jul"]
[null,null,null,null,null,null,null,null,null,null,"Aug"]
[null,null,null,null,null,null,null,null,null,null,"Sep"]
[null,null,null,null,null,null,null,null,null,null,"Oct"]
[null,null,null,null,null,null,null,null,null,null,"Nov"]
[null,null,null,null,null,null,null,null,null,null,"Dec"]
[null,null,null,null,null,null,null,null,null,null,"Annual",{"$f":"AVERAGE(L55:L66)","v":{"$error":"#DIV/0!"}},{"$f":"MAX(M55:M66)","v":0},{"$f":"AVERAGE(N55:N66)","v":{"$error":"#DIV/0!"}},{"$f":"MAX(O55:O66)","v":0}]
[]
[null,null,null,null,null,null,null,null,null,{"$f":"+A9","v":2023},"mg/Nm3","Monthly 1/2 hourly mean","Monthly 1/2 hourly maximum","Monthly daily mean","Monthly daily maximum"]
[null,null,null,null,null,null,null,null,null,"A5","Jan"]
[null,null,null,null,null,null,null,null,null,null,"Feb"]
[null,null,null,null,null,null,null,null,null,null,"Mar"]
[null,null,null,null,null,null,null,null,null,null,"Apr"]
[null,null,null,null,null,null,null,null,null,null,"May"]
[null,null,null,null,null,null,null,null,null,null,"Jun"]
[null,null,null,null,null,null,null,null,null,null,"Jul"]
[null,null,null,null,null,null,null,null,null,null,"Aug"]
[null,null,null,null,null,null,null,null,null,null,"Sep"]
[null,null,null,null,null,null,null,null,null,null,"Oct"]
[null,null,null,null,null,null,null,null,null,null,"Nov"]
[null,null,null,null,null,null,null,null,null,null,"Dec"]
[null,null,null,null,null,null,null,null,null,null,"Annual",{"$f":"AVERAGE(L70:L81)","v":{"$error":"#DIV/0!"}},{"$f":"MAX(M70:M81)","v":0},{"$f":"AVERAGE(N70:N81)","v":{"$error":"#DIV/0!"}},{"$f":"MAX(O70:O81)","v":0}]

{"sheet":"CO 95% 10 min","index":21,"n_rows":82,"n_cols":19,"rows_kept":82,"cut":false,"hidden":false,"merged":[[4,0,5,7],[6,18,10,20],[12,18,14,20],[15,18,18,20],[69,10,81,10],[7,1,7,4],[7,5,7,7],[7,10,7,16],[9,10,21,10],[24,10,36,10],[39,10,51,10],[50,0,50,7],[51,0,54,7],[54,10,66,10]]}
[{"$f":"+'Cover Page'!$B$29","v":"Annual Performance Report 2023"},null,null,null,{"$f":"+'Cover Page'!$B$33","v":"Slough Heat and Power Station"}]
[]
["Monitoring of Carbon Monoxide (10-minute avg)",null,null,null,"Whole Installation",null,null,"See  Notes in Cell S3",null,{"$f":"+A3","v":"Monitoring of Carbon Monoxide (10-minute avg)"},null,null,null,null,"Per Combustion Line",null,"Notes:",null,"Notes:"]
[]
["Please complete this tab for your plant if you have 10-minute average CO ELVs; otherwise, leave it blank and complete the CO 0.5 hourly tab"]
[]
[null,null,null,null,null,null,null,null,null,null,null,null,null,null,null,null,null,null,"User to add logic to complete Whole installation, Table A5:H18. From the data in Per Combustion Line, Table K6:Q79, subject to No. of lines installed"]
["mg/Nm3","10-minute Reference Periods",null,null,null,"Daily Reference Periods"]
[{"$f":"+'Cover Page'!C39","v":2023},"95%ile 10-min avg CO ELV","95%ile 10-min avg maximum","Monthly CO 10-min avg mean","10-min avg maximum","Daily CO ELV","Monthly daily mean","Highest daily maximum",null,null,{"$f":"+A9","v":2023},"mg/Nm3","95%ile 10-min avg maximum","Monthly CO 10-min avg mean","10-min avg maximum","Monthly daily mean","Monthly daily maximum"]
["Jan",150,118.05549999999985,37.170876149269887,201.9,50,37.346153846153847,47,null,null,"A1","Jan",118.05549999999985,37.170876149269887,201.9,37.346153846153847,47]
["Feb",{"$f":"+B10","v":150},106.63249999999996,39.967311720698206,227.38,{"$f":"+F10","v":50},39.928571428571431,47,null,null,null,"Feb",106.63249999999996,39.967311720698206,227.38,39.928571428571431,47]
["Mar",{"$f":"+B11","v":150},104.4465,40.398481578947454,237.7,{"$f":"+F11","v":50},40.518518518518519,48,null,null,null,"Mar",104.4465,40.398481578947454,237.7,40.518518518518519,48,null,"Whole Installation table A5:H18:"]
["Apr",150,101.43449999999997,27.728185714285651,245.43,50,27.5,40,null,null,null,"Apr",101.43449999999997,27.728185714285651,245.43,27.5,40,null,"Mean: for 10-min and daily periods use average of all operational combustion lines."]
["May",150,58.346499999999999,19.419560527367157,335.78,50,19.5,32,null,null,null,"May",58.346499999999999,19.419560527367157,335.78,19.5,32]
["Jun",150,77.600499999999997,14.630218053927303,256.17,50,14.766666666666667,25,null,null,null,"Jun",77.600499999999997,14.630218053927303,256.17,14.766666666666667,25]
["Jul",150,55.306999999999988,14.789523809523782,231.88,50,14.870967741935484,28,null,null,null,"Jul",55.306999999999988,14.789523809523782,231.88,14.870967741935484,28,null,"Maximum: for 10-min and daily periods use the highest of all operational combustion lines in any month."]
["Aug",150,54.003999999999998,13.612776047904225,290.8,50,13.568965517241379,22,null,null,null,"Aug",54.003999999999998,13.612776047904225,290.8,13.568965517241379,22]
["Sep",150,70.878499999999988,17.934234628248028,265.33999999999997,50,18.037037037037038,30,null,null,null,"Sep",70.878499999999988,17.934234628248028,265.33999999999997,18.037037037037038,30]
["Oct",150,98.411999999999978,28.74461137548149,270.45999999999998,50,28.933333333333334,45,null,null,null,"Oct",98.411999999999978,28.74461137548149,270.45999999999998,28.933333333333334,45]
["Nov",150,109.74449999999999,34.806648351648292,555.54999999999995,50,34.692307692307693,45,null,null,null,"Nov",109.74449999999999,34.806648351648292,555.54999999999995,34.692307692307693,45]
["Dec",150,106.61199999999999,31.781665060240901,252.47,50,31.747241379310353,43.94,null,null,null,"Dec",106.61199999999999,31.781665060240901,252.47,31.747241379310353,43.94]
[null,null,null,null,null,null,null,null,null,null,null,"Annual",{"$f":"AVERAGE(M10:M21)","v":88.456166666666661},null,{"$f":"MAX(O10:O21)","v":555.54999999999995},{"$f":"AVERAGE(P10:P21)","v":26.784146930089648},{"$f":"MAX(Q10:Q21)","v":48}]
[]
[null,null,null,null,null,null,null,null,null,null,{"$f":"+A9","v":2023},"mg/Nm3","95%ile 10-min avg maximum","Monthly CO 10-min avg mean","10-min avg maximum","Monthly daily mean","Monthly daily maximum"]
[null,null,null,null,null,null,null,null,null,null,"A2","Jan"]
[null,null,null,null,null,null,null,null,null,null,null,"Feb"]
[null,null,null,null,null,null,null,null,null,null,null,"Mar"]
[null,null,null,null,null,null,null,null,null,null,null,"Apr"]
[null,null,null,null,null,null,null,null,null,null,null,"May"]
[null,null,null,null,null,null,null,null,null,null,null,"Jun"]
[null,null,null,null,null,null,null,null,null,null,null,"Jul"]
[null,null,null,null,null,null,null,null,null,null,null,"Aug"]
[null,null,null,null,null,null,null,null,null,null,null,"Sep"]
[null,null,null,null,null,null,null,null,null,null,null,"Oct"]
[null,null,null,null,null,null,null,null,null,null,null,"Nov"]
[null,null,null,null,null,null,null,null,null,null,null,"Dec"]
[null,null,null,null,null,null,null,null,null,null,null,"Annual",{"$f":"AVERAGE(M25:M36)","v":{"$error":"#DIV/0!"}},null,{"$f":"MAX(O25:O36)","v":0},{"$f":"AVERAGE(P25:P36)","v":{"$error":"#DIV/0!"}},{"$f":"MAX(Q25:Q36)","v":0}]
[]
[null,null,null,null,null,null,null,null,null,null,{"$f":"+A9","v":2023},"mg/Nm3","95%ile 10-min avg maximum","Monthly CO 10-min avg mean","10-min avg maximum","Monthly daily mean","Monthly daily maximum"]
[null,null,null,null,null,null,null,null,null,null,"A3","Jan"]
[null,null,null,null,null,null,null,null,null,null,null,"Feb"]
[null,null,null,null,null,null,null,null,null,null,null,"Mar"]
[null,null,null,null,null,null,null,null,null,null,null,"Apr"]
[null,null,null,null,null,null,null,null,null,null,null,"May"]
[null,null,null,null,null,null,null,null,null,null,null,"Jun"]
[null,null,null,null,null,null,null,null,null,null,null,"Jul"]
[null,null,null,null,null,null,null,null,null,null,null,"Aug"]
[null,null,null,null,null,null,null,null,null,null,null,"Sep"]
[null,null,null,null,null,null,null,null,null,null,null,"Oct"]
[null,null,null,null,null,null,null,null,null,null,null,"Nov"]
["Comments :",null,null,null,null,null,null,null,null,null,null,"Dec"]
["Environment Agency explanatory note: The 10-minute average ELV is based on the “95th percentile”. In this case this means that 95% of the 10 minute averages in the relevant 24-hour period (i.e. 137) must be below 150 mg/Nm3, and 5% (i.e. 7) are allowed to be any value above 150 mg/Nm3. Whilst we expect operators to minimise CO emissions at all times, it is perfectly acceptable for the value of the maximum 10-minute average to be above 150 mg/Nm3, provided the 95th percentile ELV has been met for that period. ",null,null,null,null,null,null,null,null,null,null,"Annual",{"$f":"AVERAGE(M40:M51)","v":{"$error":"#DIV/0!"}},null,{"$f":"MAX(O40:O51)","v":0},{"$f":"AVERAGE(P40:P51)","v":{"$error":"#DIV/0!"}},{"$f":"MAX(Q40:Q51)","v":0}]
[]
[null,null,null,null,null,null,null,null,null,null,{"$f":"+A9","v":2023},"mg/Nm3","95%ile 10-min avg maximum","Monthly CO 10-min avg mean","10-min avg maximum","Monthly daily mean","Monthly daily maximum"]
[null,null,null,null,null,null,null,null,null,null,"A4","Jan"]
[null,null,null,null,null,null,null,null,null,null,null,"Feb"]
[null,null,null,null,null,null,null,null,null,null,null,"Mar"]
[null,null,null,null,null,null,null,null,null,null,null,"Apr"]
[null,null,null,null,null,null,null,null,null,null,null,"May"]
[null,null,null,null,null,null,null,null,null,null,null,"Jun"]
[null,null,null,null,null,null,null,null,null,null,null,"Jul"]
[null,null,null,null,null,null,null,null,null,null,null,"Aug"]
[null,null,null,null,null,null,null,null,null,null,null,"Sep"]
[null,null,null,null,null,null,null,null,null,null,null,"Oct"]
[null,null,null,null,null,null,null,null,null,null,null,"Nov"]
[null,null,null,null,null,null,null,null,null,null,null,"Dec"]
[null,null,null,null,null,null,null,null,null,null,null,"Annual",{"$f":"AVERAGE(M55:M66)","v":{"$error":"#DIV/0!"}},null,{"$f":"MAX(O55:O66)","v":0},{"$f":"AVERAGE(P55:P66)","v":{"$error":"#DIV/0!"}},{"$f":"MAX(Q55:Q66)","v":0}]
[]
[null,null,null,null,null,null,null,null,null,null,{"$f":"+A9","v":2023},"mg/Nm3","95%ile 10-min avg maximum","Monthly CO 10-min avg mean","10-min avg maximum","Monthly daily mean","Monthly daily maximum"]
[null,null,null,null,null,null,null,null,null,null,"A5","Jan"]
[null,null,null,null,null,null,null,null,null,null,null,"Feb"]
[null,null,null,null,null,null,null,null,null,null,null,"Mar"]
[null,null,null,null,null,null,null,null,null,null,null,"Apr"]
[null,null,null,null,null,null,null,null,null,null,null,"May"]
[null,null,null,null,null,null,null,null,null,null,null,"Jun"]
[null,null,null,null,null,null,null,null,null,null,null,"Jul"]
[null,null,null,null,null,null,null,null,null,null,null,"Aug"]
[null,null,null,null,null,null,null,null,null,null,null,"Sep"]
[null,null,null,null,null,null,null,null,null,null,null,"Oct"]
[null,null,null,null,null,null,null,null,null,null,null,"Nov"]
[null,null,null,null,null,null,null,null,null,null,null,"Dec"]
[null,null,null,null,null,null,null,null,null,null,null,"Annual",{"$f":"AVERAGE(M70:M81)","v":{"$error":"#DIV/0!"}},null,{"$f":"MAX(O70:O81)","v":0},{"$f":"AVERAGE(P70:P81)","v":{"$error":"#DIV/0!"}},{"$f":"MAX(Q70:Q81)","v":0}]

{"sheet":"NH3","index":22,"n_rows":79,"n_cols":17,"rows_kept":79,"cut":false,"hidden":false,"merged":[[3,16,7,18],[9,16,11,18],[12,16,15,18],[66,9,78,9],[4,1,4,3],[4,4,4,6],[4,9,4,14],[6,9,18,9],[21,9,33,9],[36,9,48,9],[47,0,47,6],[48,0,51,6],[51,9,63,9],[18,4,18,6]]}
[{"$f":"+'Cover Page'!$B$29","v":"Annual Performance Report 2023"},null,null,null,{"$f":"+'Cover Page'!$B$33","v":"Slough Heat and Power Station"}]
[]
["Monitoring of Ammnonia emissions ",null,null,"Whole Installation",null,null,"See  Notes in Cell Q3",null,null,{"$f":"+A3","v":"Monitoring of Ammnonia emissions "},null,null,null,"Per Combustion Line",null,null,"Notes:"]
[null,null,null,null,null,null,null,null,null,null,null,null,null,null,null,null,"User to add logic to complete Whole installation, Table A5:G18. From the data in Per Combustion Line, Table J6:O79, subject to No. of lines installed"]
["mg/Nm3","1/2 Hourly Reference Periods",null,null,"Daily Reference Periods"]
[{"$f":"+'Cover Page'!C39","v":2023},"1/2 hourly NH3 ELV","Monthly 1/2 hourly mean","Highest 1/2 hourly maximum","Daily NH3 ELV*","Monthly daily mean","Highest daily maximum",null,null,{"$f":"+A6","v":2023},"mg/Nm3","Monthly 1/2 hourly mean","Monthly 1/2 hourly maximum","Monthly daily mean","Monthly daily maximum"]
["Jan","None",null,null,"None",null,null,null,null,"A1","Jan"]
["Feb",{"$f":"+B7","v":"None"},null,null,"None",null,null,null,null,null,"Feb"]
["Mar",{"$f":"+B8","v":"None"},null,null,"None",null,null,null,null,null,"Mar",null,null,null,null,null,"Whole Installation table A5:G18:"]
["Apr","None",null,null,"None",null,null,null,null,null,"Apr",null,null,null,null,null,"Mean: for 1/2 hourly and daily periods calculate mean of values across all operational combustion lines for the month"]
["May","None",null,null,"None",null,null,null,null,null,"May"]
["Jun","None",null,null,"None",null,null,null,null,null,"Jun"]
["Jul","None",null,null,"None",null,null,null,null,null,"Jul",null,null,null,null,null,"Maximum: for 1/2 hourly and daily periods use the highest value across all operational combustion lines for the month"]
["Aug","None",null,null,"None",null,null,null,null,null,"Aug"]
["Sep","None",null,null,"None",null,null,null,null,null,"Sep"]
["Oct","None",null,null,"None",null,null,null,null,null,"Oct"]
["Nov","None",null,null,"None",null,null,null,null,null,"Nov"]
["Dec","None",{"$f":"L18","v":0.8},{"$f":"M18","v":2.48},15,{"$f":"N18","v":0.8},{"$f":"O18","v":2.48},null,null,null,"Dec",0.8,2.48,0.8,2.48]
[null,null,null,null,"* ELV came into force on 3 December 2023",null,null,null,null,null,"Annual",{"$f":"AVERAGE(L7:L18)","v":0.8},{"$f":"MAX(M7:M18)","v":2.48},{"$f":"AVERAGE(N7:N18)","v":0.8},{"$f":"MAX(O7:O18)","v":2.48}]
[]
[null,null,null,null,null,null,null,null,null,{"$f":"+A6","v":2023},"mg/Nm3","Monthly 1/2 hourly mean","Monthly 1/2 hourly maximum","Monthly daily mean","Monthly daily maximum"]
[null,null,null,null,null,null,null,null,null,"A2","Jan"]
[null,null,null,null,null,null,null,null,null,null,"Feb"]
[null,null,null,null,null,null,null,null,null,null,"Mar"]
[null,null,null,null,null,null,null,null,null,null,"Apr"]
[null,null,null,null,null,null,null,null,null,null,"May"]
[null,null,null,null,null,null,null,null,null,null,"Jun"]
[null,null,null,null,null,null,null,null,null,null,"Jul"]
[null,null,null,null,null,null,null,null,null,null,"Aug"]
[null,null,null,null,null,null,null,null,null,null,"Sep"]
[null,null,null,null,null,null,null,null,null,null,"Oct"]
[null,null,null,null,null,null,null,null,null,null,"Nov"]
[null,null,null,null,null,null,null,null,null,null,"Dec"]
[null,null,null,null,null,null,null,null,null,null,"Annual",{"$f":"AVERAGE(L22:L33)","v":{"$error":"#DIV/0!"}},{"$f":"MAX(M22:M33)","v":0},{"$f":"AVERAGE(N22:N33)","v":{"$error":"#DIV/0!"}},{"$f":"MAX(O22:O33)","v":0}]
[]
[null,null,null,null,null,null,null,null,null,{"$f":"+A6","v":2023},"mg/Nm3","Monthly 1/2 hourly mean","Monthly 1/2 hourly maximum","Monthly daily mean","Monthly daily maximum"]
[null,null,null,null,null,null,null,null,null,"A3","Jan"]
[null,null,null,null,null,null,null,null,null,null,"Feb"]
[null,null,null,null,null,null,null,null,null,null,"Mar"]
[null,null,null,null,null,null,null,null,null,null,"Apr"]
[null,null,null,null,null,null,null,null,null,null,"May"]
[null,null,null,null,null,null,null,null,null,null,"Jun"]
[null,null,null,null,null,null,null,null,null,null,"Jul"]
[null,null,null,null,null,null,null,null,null,null,"Aug"]
[null,null,null,null,null,null,null,null,null,null,"Sep"]
[null,null,null,null,null,null,null,null,null,null,"Oct"]
[null,null,null,null,null,null,null,null,null,null,"Nov"]
["Comments :",null,null,null,null,null,null,null,null,null,"Dec"]
["An indicated ELV value of zero in the table above means that no ammonia limit is/was set in the permit.  ",null,null,null,null,null,null,null,null,null,"Annual",{"$f":"AVERAGE(L37:L48)","v":{"$error":"#DIV/0!"}},{"$f":"MAX(M37:M48)","v":0},{"$f":"AVERAGE(N37:N48)","v":{"$error":"#DIV/0!"}},{"$f":"MAX(O37:O48)","v":0}]
[]
[null,null,null,null,null,null,null,null,null,{"$f":"+A6","v":2023},"mg/Nm3","Monthly 1/2 hourly mean","Monthly 1/2 hourly maximum","Monthly daily mean","Monthly daily maximum"]
[null,null,null,null,null,null,null,null,null,"A4","Jan"]
[null,null,null,null,null,null,null,null,null,null,"Feb"]
[null,null,null,null,null,null,null,null,null,null,"Mar"]
[null,null,null,null,null,null,null,null,null,null,"Apr"]
[null,null,null,null,null,null,null,null,null,null,"May"]
[null,null,null,null,null,null,null,null,null,null,"Jun"]
[null,null,null,null,null,null,null,null,null,null,"Jul"]
[null,null,null,null,null,null,null,null,null,null,"Aug"]
[null,null,null,null,null,null,null,null,null,null,"Sep"]
[null,null,null,null,null,null,null,null,null,null,"Oct"]
[null,null,null,null,null,null,null,null,null,null,"Nov"]
[null,null,null,null,null,null,null,null,null,null,"Dec"]
[null,null,null,null,null,null,null,null,null,null,"Annual",{"$f":"AVERAGE(L52:L63)","v":{"$error":"#DIV/0!"}},{"$f":"MAX(M52:M63)","v":0},{"$f":"AVERAGE(N52:N63)","v":{"$error":"#DIV/0!"}},{"$f":"MAX(O52:O63)","v":0}]
[]
[null,null,null,null,null,null,null,null,null,{"$f":"+A6","v":2023},"mg/Nm3","Monthly 1/2 hourly mean","Monthly 1/2 hourly maximum","Monthly daily mean","Monthly daily maximum"]
[null,null,null,null,null,null,null,null,null,"A5","Jan"]
[null,null,null,null,null,null,null,null,null,null,"Feb"]
[null,null,null,null,null,null,null,null,null,null,"Mar"]
[null,null,null,null,null,null,null,null,null,null,"Apr"]
[null,null,null,null,null,null,null,null,null,null,"May"]
[null,null,null,null,null,null,null,null,null,null,"Jun"]
[null,null,null,null,null,null,null,null,null,null,"Jul"]
[null,null,null,null,null,null,null,null,null,null,"Aug"]
[null,null,null,null,null,null,null,null,null,null,"Sep"]
[null,null,null,null,null,null,null,null,null,null,"Oct"]
[null,null,null,null,null,null,null,null,null,null,"Nov"]
[null,null,null,null,null,null,null,null,null,null,"Dec"]
[null,null,null,null,null,null,null,null,null,null,"Annual",{"$f":"AVERAGE(L67:L78)","v":{"$error":"#DIV/0!"}},{"$f":"MAX(M67:M78)","v":0},{"$f":"AVERAGE(N67:N78)","v":{"$error":"#DIV/0!"}},{"$f":"MAX(O67:O78)","v":0}]